Workbook

Sheet 1. Info
AA1: Revenue Requirement Workform (RRWF) for 2026 Filers | AC1: =IF('3. Data_Input_Sheet'!M12=0, "", '3. Data_Input_Sheet'!M12) -> Interrogatory Responses
AA2: 1.1 | AC2: =IF('3. Data_Input_Sheet'!U12=0, "", '3. Data_Input_Sheet'!U12) -> Settlement Agreement
P11: Version | Q11: =$AA$2 -> 1.1
F16: Utility Name | G16: Oshawa PUC Networks Inc.
F18: Service Territory | G18: Oshawa
F20: Assigned EB Number | G20: EB-2025-0014 | AA20: Company Name
Z21: 1 | AA21: Alectra Utilities Corporation-Brampton Rate Zone
F22: Name and Title | G22: Lori Filion, Manager Regulatory Affairs & Strategy | Z22: 2 | AA22: Alectra Utilities Corporation-Enersource Rate Zone
Z23: 3 | AA23: Alectra Utilities Corporation-Horizon Utilities Rate Zone
F24: Phone Number | G24: 1-905-723-4626 | Z24: 4 | AA24: Alectra Utilities Corporation-PowerStream Rate Zone
Z25: 5 | AA25: Alectra Utilities Corporation-Guelph Rate Zone
F26: Email Address | G26: lfilion@oshawapower.ca | Z26: 6 | AA26: Algoma Power Inc.
Z27: 7 | AA27: Atikokan Hydro Inc.
E28: Test Year | G28: 2026 | Z28: 8 | AA28: Bluewater Power Distribution Corporation
Z29: 9 | AA29: Burlington Hydro Inc.
E30: Bridge Year | G30: 2025 | Z30: 10 | AA30: Canadian Niagara Power Inc.
Z31: 11 | AA31: Centre Wellington Hydro Ltd.
E32: Last Rebasing Year | G32: 2021 | Z32: 12 | AA32: Chapleau Public Utilities Corporation
Z33: 13 | AA33: Cooperative Hydro Embrun Inc.
Z34: 14 | AA34: E.L.K. Energy Inc.
Z35: 15 | AA35: Elexicon Energy Inc.-Whitby Rate Zone
Z36: 16 | AA36: Elexicon Energy Inc.-Veridian Rate Zone
A37: The RRWF has been enhanced commencing with 2017 rate applications to provide estimated base distribution rates. The enhanced RRWF is not intended to replace a utility’s formal rate generator model which should continue to be the source of the proposed rates as well as the final ones at the conclusion of the proceeding. The load forecasting addition made to this model is intended to be demonstrative only and does not replace the information filed in the utility’s application. In an effort to minimize the incremental work required from utilities, the cost allocation and rate design additions to this model do in fact replace former appendices that were required to be filed as part of the cost of service (Chapter 2) filing requirements. | Z37: 17 | AA37: Enova Power Corp.-Kitchener-Wilmot Hydro Rate Zone
AA38: Enova Power Corp.-Waterloo North Rate Zone
A39: Commencing with 2023 rate applications, the RRWF has been enhanced with an additional column, so that two stages of processing of an application (e.g. interrogatory responses and settlement agreement) between the initial application filing and the OEB decision and draft rate order ("Per Board Decision") can be used. Functionality of the RRWF is the same as in previous versions of the RRWF. (May 2022) | Z39: 18 | AA39: Entegrus Powerlines Inc.-For Entegrus-Main Rate Zone
Z40: 19 | AA40: Entegrus Powerlines Inc.-For Former St. Thomas Energy Rate Zone
Z41: 20 | AA41: ENWIN Utilities Ltd.
Z42: 21 | AA42: EPCOR Electricity Distribution Ontario Inc.
Z43: 22 | AA43: ERTH Power Corporation - ERTH Power Main Rate Zone
Z44: 23 | AA44: ERTH POWER CORPORATION – GODERICH RATE ZONE
Z45: 24 | AA45: Espanola Regional Hydro Distribution Corporation
Z46: 25 | AA46: Essex Powerlines Corporation
Z47: 26 | AA47: Festival Hydro Inc.
Z48: 27 | AA48: Fort Frances Power Corporation
Z49: 28 | AA49: GrandBridge Energy Inc.-Brantford Power Rate Zone
Z50: 29 | AA50: GrandBridge Energy Inc.-Energy+ Rate Zone
Z51: 30 | AA51: Greater Sudbury Hydro Inc.
Z52: 31 | AA52: Grimsby Power Incorporated
Z53: 32 | AA53: Halton Hills Hydro Inc.
Z54: 33 | AA54: Hearst Power Distribution Co. Ltd.
Z55: 34 | AA55: Hydro 2000 Inc.
Z56: 35 | AA56: Hydro Hawkesbury Inc.
Z57: 36 | AA57: Hydro One Networks Inc.
Z58: 37 | AA58: Hydro One Networks Inc.-Former Orillia Power Distribution Corporation Service Area
Z59: 38 | AA59: Hydro One Networks Inc.-Former Peterborough Distribution Inc. Service Area
Z60: 39 | AA60: Hydro One Networks Inc.-Former Haldimand County Hydro Inc. Service Area
Z61: 40 | AA61: Hydro One Networks Inc.-Former Norfolk Power Distribution Inc. Service Area
Z62: 41 | AA62: Hydro One Networks Inc.-Former Woodstock Hydro Services Inc. Service Area
Z63: 42 | AA63: Hydro One Remote Communites Inc.
Z64: 43 | AA64: Hydro Ottawa Limited
Z65: 44 | AA65: InnPower Corporation
Z66: 45 | AA66: Kingston Hydro Corporation
Z67: 46 | AA67: Lakefront Utilities Inc.
Z68: 47 | AA68: Lakeland Power Distribution Ltd.
Z69: 48 | AA69: London Hydro Inc.
Z70: 49 | AA70: Milton Hydro Distribution Inc.
Z71: 50 | AA71: Newmarket-Tay Power Distribution Ltd.-For Former Midland Power Utility Rate Zone
Z72: 51 | AA72: Newmarket-Tay Power Distribution Ltd.-For Newmarket-Tay Power Main Rate Zone
Z73: 52 | AA73: Niagara Peninsula Energy Inc.
Z74: 53 | AA74: Niagara-on-the-Lake Hydro Inc.
Z75: 54 | AA75: North Bay Hydro Distribution Limited
Z76: 55 | AA76: Northern Ontario Wires Inc.
Z77: 56 | AA77: Oakville Hydro Electricity Distribution Inc.
Z78: 57 | AA78: Orangeville Hydro Limited
Z79: 58 | AA79: Oshawa PUC Networks Inc.
Z80: 59 | AA80: Ottawa River Power Corporation
Z81: 60 | AA81: PUC Distribution Inc.
Z82: 61 | AA82: Renfrew Hydro Inc.
Z83: 62 | AA83: Rideau St. Lawrence Distribution Inc.
Z84: 63 | AA84: Sioux Lookout Hydro Inc.
Z85: 64 | AA85: Synergy North Corporation-Kenora Rate Zone
Z86: 65 | AA86: Synergy North Corporation-Thunder Bay Rate Zone
Z87: 66 | AA87: Tillsonburg Hydro Inc.
Z88: 67 | AA88: Toronto Hydro-Electric System Limited
Z89: 68 | AA89: Wasaga Distribution Inc.
Z90: 69 | AA90: Welland Hydro-Electric System Corp.
Z91: 70 | AA91: Wellington North Power Inc.
Z92: 71 | AA92: Westario Power Inc.

Sheet 2. Table of Contents
A10: Table of Contents
D12: 1. Info | I12: 8. Rev_Def_Suff
D14: 2. Table of Contents | I14: 9. Rev_Reqt
D16: 3. Data_Input_Sheet | I16: 10. Load Forecast
D18: 4. Rate_Base | I18: 11. Cost Allocation
D20: 5. Utility Income | I20: 12. Residential Rate Design - hidden. Contact OEB staff if needed.
D22: 6. Taxes_PILs | I22: 13. Rate Design and Revenue Reconciliation
D24: 7. Cost_of_Capital | I24: 14. Tracking Sheet
A26: Notes:
A27: (1) | B27: Pale green cells represent inputs
A28: (2) | B28: Pale green boxes at the bottom of each page are for additional notes
A29: (3) | B29: Pale blue cells represent drop-down lists
A30: (4) | B30: Please note that this model uses MACROS. Before starting, please ensure that macros have been enabled.
A31: (5) | B31: Completed versions of the Revenue Requirement Work Form are required to be filed in working Microsoft Excel format.

Sheet 3. Data_Input_Sheet
U1: =CONCATENATE('2. Table of Contents'!$F$6," ",'2. Table of Contents'!$G$6) -> 
B9: Data Input Sheet
E12: Initial Application | G12: (1) | I12: =IF(ISBLANK(M12),"","Adjustments") -> Adjustments | M12: Interrogatory Responses | O12: (5) | Q12: =IF(ISBLANK(M12),"","Adjustments") -> Adjustments | U12: Settlement Agreement | W12: (5) | Y12: =IF(ISBLANK(U12),"","Adjustments") -> Adjustments | AC12: Per Board Decision
B15: 1 | C15: Rate Base
C16: Gross Fixed Assets (average) | E16: =AVERAGE(294023849.69,309424766.03) -> 301724307.9 | I16: =IF(ISBLANK(M16),"",IF(ISBLANK(E16),"",M16-E16)) -> 0 | M16: 301724307.9 | Q16: =IF(ISBLANK(U16),"",IF(ISBLANK(M16),"",U16-M16)) -> 0 | U16: =M16 -> 301724307.9 | Y16: =IF(ISBLANK(AC16),"",IF(ISBLANK(U16),"",AC16-U16)) -> -3405173.655 | AC16: =AVERAGE(292396769.68,304241498.73) -> 298319134.2
C17: Accumulated Depreciation (average) | E17: =AVERAGE(-126376356.44,-132750311.92) -> -129563334.2 | G17: (4) | I17: =IF(ISBLANK(M17),"",IF(ISBLANK(E17),"",M17-E17)) -> 0 | M17: -129563334.2 | Q17: =IF(ISBLANK(U17),"",IF(ISBLANK(M17),"",U17-M17)) -> 0 | U17: =M17 -> -129563334.2 | Y17: =IF(ISBLANK(AC17),"",IF(ISBLANK(U17),"",AC17-U17)) -> 418656.37 | AC17: =AVERAGE(-126199502.6,-132089853.02) -> -129144677.8
C18: Allowance for Working Capital:
C19: Controllable Expenses | E19: =22172197.05+99793+164561.64 -> 22436551.69 | I19: =IF(ISBLANK(M19),"",IF(ISBLANK(E19),"",M19-E19)) -> 0 | M19: 22436551.69 | Q19: =IF(ISBLANK(U19),"",IF(ISBLANK(M19),"",U19-M19)) -> 0 | U19: =M19 -> 22436551.69 | Y19: =IF(ISBLANK(AC19),"",IF(ISBLANK(U19),"",AC19-U19)) -> -2771990.05 | AC19: =AC36+AC38 -> 19664561.64
C20: Cost of Power | E20: 134866266.2 | I20: =IF(ISBLANK(M20),"",IF(ISBLANK(E20),"",M20-E20)) -> -569234.4762 | M20: 134297031.7 | Q20: =IF(ISBLANK(U20),"",IF(ISBLANK(M20),"",U20-M20)) -> 590961.0176 | U20: 134887992.7 | Y20: =IF(ISBLANK(AC20),"",IF(ISBLANK(U20),"",AC20-U20)) -> 12937217.1 | AC20: 147825209.8
C21: Working Capital Rate (%) | E21: 0.075 | G21: (8) | I21: =IF(ISBLANK(M21),"",IF(ISBLANK(E21),"",M21-E21)) -> 0 | M21: 0.075 | O21: (8) | Q21: =IF(ISBLANK(U21),"",IF(ISBLANK(M21),"",U21-M21)) -> 0 | U21: =M21 -> 0.075 | W21: (8) | Y21: =IF(ISBLANK(AC21),"",IF(ISBLANK(U21),"",AC21-U21)) -> 0 | AC21: =U21 -> 0.075 | AE21: (8)
B23: 2 | C23: Utility Income
C24: Operating Revenues:
C25: Distribution Revenue at Current Rates | E25: 32178736.27 | I25: =IF(ISBLANK(M25),"",IF(ISBLANK(E25),"",M25-E25)) -> -134624.1842 | M25: 32044112.09 | Q25: =IF(ISBLANK(U25),"",IF(ISBLANK(M25),"",U25-M25)) -> 165064.2642 | U25: 32209176.35 | Y25: =IF(ISBLANK(AC25),"",IF(ISBLANK(U25),"",AC25-U25)) -> 18012.20592 | AC25: 32227188.56
C26: Distribution Revenue at Proposed Rates | E26: =BRRAPP -> 38848892.25 | I26: =IF(ISBLANK(M26),"",IF(ISBLANK(E26),"",M26-E26)) -> -2778.456907 | M26: 38846113.8 | Q26: =IF(ISBLANK(U26),"",IF(ISBLANK(M26),"",U26-M26)) -> -346296.7112 | U26: =BRRSA -> 38499817.09 | Y26: =IF(ISBLANK(AC26),"",IF(ISBLANK(U26),"",AC26-U26)) -> -3461350.3 | AC26: =BRRPBD -> 35038466.79
C27: Other Revenue:
C28: Miscellaneous Service Revenues | E28: 411466.2 | I28: =IF(ISBLANK(M28),"",IF(ISBLANK(E28),"",M28-E28)) -> 25.24 | M28: 411491.44 | Q28: =IF(ISBLANK(U28),"",IF(ISBLANK(M28),"",U28-M28)) -> 0 | U28: =M28 -> 411491.44 | Y28: =IF(ISBLANK(AC28),"",IF(ISBLANK(U28),"",AC28-U28)) -> 0 | AC28: =U28 -> 411491.44
C29: Late Payment Charges | E29: 416050.08 | I29: =IF(ISBLANK(M29),"",IF(ISBLANK(E29),"",M29-E29)) -> 0 | M29: 416050.08 | Q29: =IF(ISBLANK(U29),"",IF(ISBLANK(M29),"",U29-M29)) -> 284000 | U29: =M29+284000 -> 700050.08 | Y29: =IF(ISBLANK(AC29),"",IF(ISBLANK(U29),"",AC29-U29)) -> 0 | AC29: =U29 -> 700050.08
C30: Other Operating Revenues | E30: 2131572.86 | I30: =IF(ISBLANK(M30),"",IF(ISBLANK(E30),"",M30-E30)) -> 334.255 | M30: 2131907.115 | Q30: =IF(ISBLANK(U30),"",IF(ISBLANK(M30),"",U30-M30)) -> 0 | U30: =M30 -> 2131907.115 | Y30: =IF(ISBLANK(AC30),"",IF(ISBLANK(U30),"",AC30-U30)) -> 0 | AC30: =U30 -> 2131907.115
C31: Other Income and Deductions | E31: 519017.72 | I31: =IF(ISBLANK(M31),"",IF(ISBLANK(E31),"",M31-E31)) -> 0 | M31: 519017.72 | Q31: =IF(ISBLANK(U31),"",IF(ISBLANK(M31),"",U31-M31)) -> 64808 | U31: =M31+64808 -> 583825.72 | Y31: =IF(ISBLANK(AC31),"",IF(ISBLANK(U31),"",AC31-U31)) -> 0 | AC31: =U31 -> 583825.72
D33: Total Revenue Offsets | E33: 3478106.86 | G33: (6) | I33: =IF(ISBLANK(M33),"",IF(ISBLANK(E33),"",M33-E33)) -> 359.495 | M33: 3478466.355 | Q33: =IF(ISBLANK(U33),"",IF(ISBLANK(M33),"",U33-M33)) -> 348808 | U33: =M33+348808 -> 3827274.355 | Y33: =IF(ISBLANK(AC33),"",IF(ISBLANK(U33),"",AC33-U33)) -> 0 | AC33: =U33 -> 3827274.355
C35: Operating Expenses:
C36: OM+A Expenses | E36: =E19-E38-E40 -> 22271990.05 | I36: =IF(ISBLANK(M36),"",IF(ISBLANK(E36),"",M36-E36)) -> 0 | M36: 22271990.05 | Q36: =IF(ISBLANK(U36),"",IF(ISBLANK(M36),"",U36-M36)) -> 0 | U36: =M36 -> 22271990.05 | Y36: =IF(ISBLANK(AC36),"",IF(ISBLANK(U36),"",AC36-U36)) -> -2771990.05 | AC36: 19500000
C37: Depreciation/Amortization | E37: 9467348.33 | I37: =IF(ISBLANK(M37),"",IF(ISBLANK(E37),"",M37-E37)) -> 0 | M37: 9467348.33 | Q37: =IF(ISBLANK(U37),"",IF(ISBLANK(M37),"",U37-M37)) -> 0 | U37: =M37 -> 9467348.33 | Y37: =IF(ISBLANK(AC37),"",IF(ISBLANK(U37),"",AC37-U37)) -> -556798.81 | AC37: =8975874.55-65325.03 -> 8910549.52
C38: Property taxes | E38: =164561.64 -> 164561.64 | I38: =IF(ISBLANK(M38),"",IF(ISBLANK(E38),"",M38-E38)) -> 0 | M38: 164561.64 | Q38: =IF(ISBLANK(U38),"",IF(ISBLANK(M38),"",U38-M38)) -> 0 | U38: =M38 -> 164561.64 | Y38: =IF(ISBLANK(AC38),"",IF(ISBLANK(U38),"",AC38-U38)) -> 0 | AC38: =U38 -> 164561.64
C39: Capital taxes | Q39: =IF(ISBLANK(U39),"",IF(ISBLANK(M39),"",U39-M39)) ->  | Y39: =IF(ISBLANK(AC39),"",IF(ISBLANK(U39),"",AC39-U39)) -> 
C40: Other expenses | I40: =IF(ISBLANK(M40),"",IF(ISBLANK(E40),"",M40-E40)) ->  | Q40: =IF(ISBLANK(U40),"",IF(ISBLANK(M40),"",U40-M40)) ->  | Y40: =IF(ISBLANK(AC40),"",IF(ISBLANK(U40),"",AC40-U40)) -> 
B42: 3 | C42: Taxes/PILs
C43: Taxable Income:
D44: Adjustments required to arrive at taxable income | E44: -6622513 | G44: (2) | I44: =IF(ISBLANK(M44),"",IF(ISBLANK(E44),"",M44-E44)) -> 1537.272382 | M44: -6620975.728 | Q44: =IF(ISBLANK(U44),"",IF(ISBLANK(M44),"",U44-M44)) -> -1595.594747 | U44: -6622571.322 | Y44: =IF(ISBLANK(AC44),"",IF(ISBLANK(U44),"",AC44-U44)) -> 104.5859583 | AC44: -6622466.736
C45: Utility Income Taxes and Rates:
C46: Income taxes (not grossed up) | E46: 0 | I46: =IF(ISBLANK(M46),"",IF(ISBLANK(E46),"",M46-E46)) ->  | Q46: =IF(ISBLANK(U46),"",IF(ISBLANK(M46),"",U46-M46)) ->  | Y46: =IF(ISBLANK(AC46),"",IF(ISBLANK(U46),"",AC46-U46)) -> 
C47: Income taxes (grossed up) | E47: =IF(ISBLANK(E46),"",E46/(1-SUM(E49:E50))) -> 0 | M47: =IF(ISBLANK(M46),"",M46/(1-SUM(M49:M50))) ->  | U47: =IF(ISBLANK(U46),"",U46/(1-SUM(U49:U50))) ->  | AC47: =IF(ISBLANK(AC46),"",AC46/(1-SUM(AC49:AC50))) -> 
C48: Capital Taxes
C49: Federal tax (%) | E49: 0.15 | I49: =IF(ISBLANK(M49),"",IF(ISBLANK(E49),"",M49-E49)) -> 0 | M49: 0.15 | Q49: =IF(ISBLANK(U49),"",IF(ISBLANK(M49),"",U49-M49)) -> 0 | U49: =M49 -> 0.15 | Y49: =IF(ISBLANK(AC49),"",IF(ISBLANK(U49),"",AC49-U49)) -> 0 | AC49: =U49 -> 0.15
C50: Provincial tax (%) | E50: 0.115 | I50: =IF(ISBLANK(M50),"",IF(ISBLANK(E50),"",M50-E50)) -> 0 | M50: 0.115 | Q50: =IF(ISBLANK(U50),"",IF(ISBLANK(M50),"",U50-M50)) -> 0 | U50: =M50 -> 0.115 | Y50: =IF(ISBLANK(AC50),"",IF(ISBLANK(U50),"",AC50-U50)) -> 0 | AC50: =U50 -> 0.115
C51: Income Tax Credits | I51: =IF(ISBLANK(M51),"",IF(ISBLANK(E51),"",M51-E51)) ->  | Q51: =IF(ISBLANK(U51),"",IF(ISBLANK(M51),"",U51-M51)) ->  | Y51: =IF(ISBLANK(AC51),"",IF(ISBLANK(U51),"",AC51-U51)) -> 
B53: 4 | C53: Capitalization/Cost of Capital
C54: Capital Structure:
C55: Long-term debt Capitalization Ratio (%) | E55: 0.56 | I55: =IF(ISBLANK(M55),"",IF(ISBLANK(E55),"",M55-E55)) -> 0 | M55: 0.56 | Q55: =IF(ISBLANK(U55),"",IF(ISBLANK(M55),"",U55-M55)) -> 0 | U55: =M55 -> 0.56 | Y55: =IF(ISBLANK(AC55),"",IF(ISBLANK(U55),"",AC55-U55)) -> 0 | AC55: =U55 -> 0.56
C56: Short-term debt Capitalization Ratio (%) | E56: 0.04 | G56: (7) | I56: =IF(ISBLANK(M56),"",IF(ISBLANK(E56),"",M56-E56)) -> 0 | M56: 0.04 | O56: (7) | Q56: =IF(ISBLANK(U56),"",IF(ISBLANK(M56),"",U56-M56)) -> 0 | U56: =M56 -> 0.04 | W56: (7) | Y56: =IF(ISBLANK(AC56),"",IF(ISBLANK(U56),"",AC56-U56)) -> 0 | AC56: =U56 -> 0.04 | AE56: (7)
C57: Common Equity Capitalization Ratio (%) | E57: 0.4 | I57: =IF(ISBLANK(M57),"",IF(ISBLANK(E57),"",M57-E57)) -> 0 | M57: 0.4 | Q57: =IF(ISBLANK(U57),"",IF(ISBLANK(M57),"",U57-M57)) -> 0 | U57: =M57 -> 0.4 | Y57: =IF(ISBLANK(AC57),"",IF(ISBLANK(U57),"",AC57-U57)) -> 0 | AC57: =U57 -> 0.4
C58: Prefered Shares Capitalization Ratio (%) | E58: 0 | I58: =IF(ISBLANK(M58),"",IF(ISBLANK(E58),"",M58-E58)) -> 0 | M58: 0 | Q58: =IF(ISBLANK(U58),"",IF(ISBLANK(M58),"",U58-M58)) -> 0 | U58: =M58 -> 0 | Y58: =IF(ISBLANK(AC58),"",IF(ISBLANK(U58),"",AC58-U58)) -> 0 | AC58: =U58 -> 0
E59: =SUM(E55:E58) -> 1 | M59: =SUM(M55:M58) -> 1 | U59: =SUM(U55:U58) -> 1 | AC59: =SUM(AC55:AC58) -> 1
E60: =IF(ISBLANK(E57),"",IF(SUM(E55:E58)=100%,"","Capital Structure must total 100%")) ->  | M60: =IF(ISBLANK(M57),"",IF(SUM(M55:M58)=100%,"","Capital Structure must total 100%")) ->  | U60: =IF(ISBLANK(U57),"",IF(SUM(U55:U58)=100%,"","Capital Structure must total 100%")) ->  | AC60: =IF(ISBLANK(AC57),"",IF(SUM(AC55:AC58)=100%,"","Capital Structure must total 100%")) -> 
C61: Cost of Capital
C62: Long-term debt Cost Rate (%) | E62: 0.0341 | I62: =IF(ISBLANK(M62),"",IF(ISBLANK(E62),"",M62-E62)) -> 0 | M62: 0.0341 | Q62: =IF(ISBLANK(U62),"",IF(ISBLANK(M62),"",U62-M62)) -> 0 | U62: =M62 -> 0.0341 | Y62: =IF(ISBLANK(AC62),"",IF(ISBLANK(U62),"",AC62-U62)) -> 0 | AC62: =U62 -> 0.0341
C63: Short-term debt Cost Rate (%) | E63: 0.0391 | I63: =IF(ISBLANK(M63),"",IF(ISBLANK(E63),"",M63-E63)) -> 0 | M63: 0.0391 | Q63: =IF(ISBLANK(U63),"",IF(ISBLANK(M63),"",U63-M63)) -> 0 | U63: =M63 -> 0.0391 | Y63: =IF(ISBLANK(AC63),"",IF(ISBLANK(U63),"",AC63-U63)) -> -0.0119 | AC63: 0.0272
C64: Common Equity Cost Rate (%) | E64: 0.09 | I64: =IF(ISBLANK(M64),"",IF(ISBLANK(E64),"",M64-E64)) -> 0 | M64: 0.09 | Q64: =IF(ISBLANK(U64),"",IF(ISBLANK(M64),"",U64-M64)) -> 0 | U64: =M64 -> 0.09 | Y64: =IF(ISBLANK(AC64),"",IF(ISBLANK(U64),"",AC64-U64)) -> 0.0011 | AC64: 0.0911
C65: Prefered Shares Cost Rate (%) | I65: =IF(ISBLANK(M65),"",IF(ISBLANK(E65),"",M65-E65)) ->  | Q65: =IF(ISBLANK(U65),"",IF(ISBLANK(M65),"",U65-M65)) ->  | Y65: =IF(ISBLANK(AC65),"",IF(ISBLANK(U65),"",AC65-U65)) -> 
A68: Notes:
B69: General | C69: Data inputs are required on Sheets 3. Data from Sheet 3 will automatically complete calculations on sheets 4 through 9 (Rate Base through Revenue Requirement). Sheets 4 through 9 do not require any inputs except for notes that the Applicant may wish to enter to support the results. Pale green cells are available on sheets 4 through 9 to enter both footnotes beside key cells and the related text for the notes at the bottom of each sheet.
B70: (1) | C70: Data in column E is for Application as originally filed. For updated revenue requirement as a result of interrogatory responses, technical or settlement conferences, etc., use column M and Adjustments in column I
B71: (2) | C71: Net of addbacks and deductions to arrive at taxable income.
B72: (3) | C72: Average of Gross Fixed Assets at beginning and end of the Test Year
B73: (4) | C73: Average of Accumulated Depreciation at the beginning and end of the Test Year. Enter as a negative amount.
B74: (5) | C74: Select option from drop-down list by clicking on cell M12 or U12. This column allows for the application update reflecting the end of discovery or Argument-in-Chief. Also, the outcome of any Settlement Process can be reflected. Beginning for 2023,two intermediate stages can be shown (e.g., Interrogatory Responses and Settlement Agreement).
B75: (6) | C75: Input total revenue offsets for deriving the base revenue requirement from the service revenue requirement. Enter a positive amount.
B76: (7) | C76: 4.0% unless an Applicant has proposed or been approved another amount.
B77: (8) | C77: The default Working Capital Allowance factor is 7.5% (of Cost of Power plus controllable expenses), per the letter issued by the Board on June 3, 2015. Alternatively, a WCA factor based on lead-lag study with supporting rationale could be provided. Some Applicants may have a unique rate as a result of a lead-lag study. The default rate for cost of service applications is 7.5%, per the letter issued by the Board on June 3, 2015.

Sheet Hidden_Data Input (hidden)
A1: Utility Name | B1: EB Number | C1: Test Year | D1: Bridge Year | E1: Last Rebasing Year | F1: Data Elements | G1: Heading | H1: Intital Application | I1: Per Board Decision
A2: ='1. Info'!$G$16 -> Oshawa PUC Networks Inc. | B2: ='1. Info'!$G$20 -> EB-2025-0014 | C2: ='1. Info'!$G$28 -> 2026 | D2: ='1. Info'!$G$30 -> 2025 | E2: ='1. Info'!$G$32 -> 2021 | F2: Gross Fixed Assets (average) | G2: Rate Base | H2: ='3. Data_Input_Sheet'!E16 -> 301724307.9 | I2: ='3. Data_Input_Sheet'!U16 -> 301724307.9
A3: ='1. Info'!$G$16 -> Oshawa PUC Networks Inc. | B3: ='1. Info'!$G$20 -> EB-2025-0014 | C3: ='1. Info'!$G$28 -> 2026 | D3: ='1. Info'!$G$30 -> 2025 | E3: ='1. Info'!$G$32 -> 2021 | F3: Accumulated Depreciation (average) | G3: Rate Base | H3: ='3. Data_Input_Sheet'!E17 -> -129563334.2 | I3: ='3. Data_Input_Sheet'!U17 -> -129563334.2
A4: ='1. Info'!$G$16 -> Oshawa PUC Networks Inc. | B4: ='1. Info'!$G$20 -> EB-2025-0014 | C4: ='1. Info'!$G$28 -> 2026 | D4: ='1. Info'!$G$30 -> 2025 | E4: ='1. Info'!$G$32 -> 2021 | F4: Controllable Expenses | G4: Allowance for Working Capital | H4: ='3. Data_Input_Sheet'!E19 -> 22436551.69 | I4: ='3. Data_Input_Sheet'!U19 -> 22436551.69
A5: ='1. Info'!$G$16 -> Oshawa PUC Networks Inc. | B5: ='1. Info'!$G$20 -> EB-2025-0014 | C5: ='1. Info'!$G$28 -> 2026 | D5: ='1. Info'!$G$30 -> 2025 | E5: ='1. Info'!$G$32 -> 2021 | F5: Cost of Power | G5: Allowance for Working Capital | H5: ='3. Data_Input_Sheet'!E20 -> 134866266.2 | I5: ='3. Data_Input_Sheet'!U20 -> 134887992.7
A6: ='1. Info'!$G$16 -> Oshawa PUC Networks Inc. | B6: ='1. Info'!$G$20 -> EB-2025-0014 | C6: ='1. Info'!$G$28 -> 2026 | D6: ='1. Info'!$G$30 -> 2025 | E6: ='1. Info'!$G$32 -> 2021 | F6: Working Capital Rate (%) | G6: Allowance for Working Capital | H6: ='3. Data_Input_Sheet'!E21 -> 0.075 | I6: ='3. Data_Input_Sheet'!U21 -> 0.075
A7: ='1. Info'!$G$16 -> Oshawa PUC Networks Inc. | B7: ='1. Info'!$G$20 -> EB-2025-0014 | C7: ='1. Info'!$G$28 -> 2026 | D7: ='1. Info'!$G$30 -> 2025 | E7: ='1. Info'!$G$32 -> 2021 | F7: Distribution Revenue at Current Rates | G7: Utility Income | H7: ='3. Data_Input_Sheet'!E25 -> 32178736.27 | I7: ='3. Data_Input_Sheet'!U25 -> 32209176.35
A8: ='1. Info'!$G$16 -> Oshawa PUC Networks Inc. | B8: ='1. Info'!$G$20 -> EB-2025-0014 | C8: ='1. Info'!$G$28 -> 2026 | D8: ='1. Info'!$G$30 -> 2025 | E8: ='1. Info'!$G$32 -> 2021 | F8: Distribution Revenue at Proposed Rates | G8: Utility Income | H8: ='3. Data_Input_Sheet'!E26 -> 38848892.25 | I8: ='3. Data_Input_Sheet'!U26 -> 38499817.09
A9: ='1. Info'!$G$16 -> Oshawa PUC Networks Inc. | B9: ='1. Info'!$G$20 -> EB-2025-0014 | C9: ='1. Info'!$G$28 -> 2026 | D9: ='1. Info'!$G$30 -> 2025 | E9: ='1. Info'!$G$32 -> 2021 | F9: Specific Service Charges | G9: Other Revenue | H9: ='3. Data_Input_Sheet'!E28 -> 411466.2 | I9: ='3. Data_Input_Sheet'!U28 -> 411491.44
A10: ='1. Info'!$G$16 -> Oshawa PUC Networks Inc. | B10: ='1. Info'!$G$20 -> EB-2025-0014 | C10: ='1. Info'!$G$28 -> 2026 | D10: ='1. Info'!$G$30 -> 2025 | E10: ='1. Info'!$G$32 -> 2021 | F10: Late Payment Charges | G10: Other Revenue | H10: ='3. Data_Input_Sheet'!E29 -> 416050.08 | I10: ='3. Data_Input_Sheet'!U29 -> 700050.08
A11: ='1. Info'!$G$16 -> Oshawa PUC Networks Inc. | B11: ='1. Info'!$G$20 -> EB-2025-0014 | C11: ='1. Info'!$G$28 -> 2026 | D11: ='1. Info'!$G$30 -> 2025 | E11: ='1. Info'!$G$32 -> 2021 | F11: Other Distribution Revenue | G11: Other Revenue | H11: ='3. Data_Input_Sheet'!E30 -> 2131572.86 | I11: ='3. Data_Input_Sheet'!U30 -> 2131907.115
A12: ='1. Info'!$G$16 -> Oshawa PUC Networks Inc. | B12: ='1. Info'!$G$16 -> Oshawa PUC Networks Inc. | C12: ='1. Info'!$G$16 -> Oshawa PUC Networks Inc. | D12: ='1. Info'!$G$16 -> Oshawa PUC Networks Inc. | E12: ='1. Info'!$G$16 -> Oshawa PUC Networks Inc. | F12: Other Income and Deductions | G12: Other Revenue | H12: ='3. Data_Input_Sheet'!E31 -> 519017.72 | I12: ='3. Data_Input_Sheet'!U31 -> 583825.72
A13: ='1. Info'!$G$16 -> Oshawa PUC Networks Inc. | B13: ='1. Info'!$G$16 -> Oshawa PUC Networks Inc. | C13: ='1. Info'!$G$16 -> Oshawa PUC Networks Inc. | D13: ='1. Info'!$G$16 -> Oshawa PUC Networks Inc. | E13: ='1. Info'!$G$16 -> Oshawa PUC Networks Inc. | F13: Total Revenue Offsets | G13: Other Revenue | H13: ='3. Data_Input_Sheet'!E33 -> 3478106.86 | I13: ='3. Data_Input_Sheet'!U33 -> 3827274.355
A14: ='1. Info'!$G$16 -> Oshawa PUC Networks Inc. | B14: ='1. Info'!$G$20 -> EB-2025-0014 | C14: ='1. Info'!$G$28 -> 2026 | D14: ='1. Info'!$G$30 -> 2025 | E14: ='1. Info'!$G$32 -> 2021 | F14: OM+A Expenses | G14: Operating Expenses | H14: ='3. Data_Input_Sheet'!E36 -> 22271990.05 | I14: ='3. Data_Input_Sheet'!U36 -> 22271990.05
A15: ='1. Info'!$G$16 -> Oshawa PUC Networks Inc. | B15: ='1. Info'!$G$20 -> EB-2025-0014 | C15: ='1. Info'!$G$28 -> 2026 | D15: ='1. Info'!$G$30 -> 2025 | E15: ='1. Info'!$G$32 -> 2021 | F15: Depreciation/Amortization | G15: Operating Expenses | H15: ='3. Data_Input_Sheet'!E37 -> 9467348.33 | I15: ='3. Data_Input_Sheet'!U37 -> 9467348.33
A16: ='1. Info'!$G$16 -> Oshawa PUC Networks Inc. | B16: ='1. Info'!$G$20 -> EB-2025-0014 | C16: ='1. Info'!$G$28 -> 2026 | D16: ='1. Info'!$G$30 -> 2025 | E16: ='1. Info'!$G$32 -> 2021 | F16: Property taxes | G16: Operating Expenses | H16: ='3. Data_Input_Sheet'!E38 -> 164561.64 | I16: ='3. Data_Input_Sheet'!U38 -> 164561.64
A17: ='1. Info'!$G$16 -> Oshawa PUC Networks Inc. | B17: ='1. Info'!$G$20 -> EB-2025-0014 | C17: ='1. Info'!$G$28 -> 2026 | D17: ='1. Info'!$G$30 -> 2025 | E17: ='1. Info'!$G$32 -> 2021 | F17: Other expenses | G17: Operating Expenses | H17: ='3. Data_Input_Sheet'!E40 -> 0 | I17: ='3. Data_Input_Sheet'!U40 -> 0
A18: ='1. Info'!$G$16 -> Oshawa PUC Networks Inc. | B18: ='1. Info'!$G$20 -> EB-2025-0014 | C18: ='1. Info'!$G$28 -> 2026 | D18: ='1. Info'!$G$30 -> 2025 | E18: ='1. Info'!$G$32 -> 2021 | F18: Adjustments required to arrive at taxable income | G18: Taxable Income | H18: ='3. Data_Input_Sheet'!E44 -> -6622513 | I18: ='3. Data_Input_Sheet'!U44 -> -6622571.322
A19: ='1. Info'!$G$16 -> Oshawa PUC Networks Inc. | B19: ='1. Info'!$G$20 -> EB-2025-0014 | C19: ='1. Info'!$G$28 -> 2026 | D19: ='1. Info'!$G$30 -> 2025 | E19: ='1. Info'!$G$32 -> 2021 | F19: Income taxes (not grossed up) | G19: Utility Income Taxes | H19: ='3. Data_Input_Sheet'!E46 -> 0 | I19: ='3. Data_Input_Sheet'!U46 -> 0
A20: ='1. Info'!$G$16 -> Oshawa PUC Networks Inc. | B20: ='1. Info'!$G$20 -> EB-2025-0014 | C20: ='1. Info'!$G$28 -> 2026 | D20: ='1. Info'!$G$30 -> 2025 | E20: ='1. Info'!$G$32 -> 2021 | F20: Federal tax (%) | G20: Income taxes (grossed up) | H20: ='3. Data_Input_Sheet'!E49 -> 0.15 | I20: ='3. Data_Input_Sheet'!U49 -> 0.15
A21: ='1. Info'!$G$16 -> Oshawa PUC Networks Inc. | B21: ='1. Info'!$G$20 -> EB-2025-0014 | C21: ='1. Info'!$G$28 -> 2026 | D21: ='1. Info'!$G$30 -> 2025 | E21: ='1. Info'!$G$32 -> 2021 | F21: Provincial tax (%) | G21: Income taxes (grossed up) | H21: ='3. Data_Input_Sheet'!E50 -> 0.115 | I21: ='3. Data_Input_Sheet'!U50 -> 0.115
A22: ='1. Info'!$G$16 -> Oshawa PUC Networks Inc. | B22: ='1. Info'!$G$20 -> EB-2025-0014 | C22: ='1. Info'!$G$28 -> 2026 | D22: ='1. Info'!$G$30 -> 2025 | E22: ='1. Info'!$G$32 -> 2021 | F22: Income Tax Credits | G22: Income taxes (grossed up) | H22: ='3. Data_Input_Sheet'!E51 -> 0 | I22: ='3. Data_Input_Sheet'!U51 -> 0
A23: ='1. Info'!$G$16 -> Oshawa PUC Networks Inc. | B23: ='1. Info'!$G$20 -> EB-2025-0014 | C23: ='1. Info'!$G$28 -> 2026 | D23: ='1. Info'!$G$30 -> 2025 | E23: ='1. Info'!$G$32 -> 2021 | F23: Long-term debt Capitalization Ratio (%) | G23: Capitalization | H23: ='3. Data_Input_Sheet'!E55 -> 0.56 | I23: ='3. Data_Input_Sheet'!U55 -> 0.56
A24: ='1. Info'!$G$16 -> Oshawa PUC Networks Inc. | B24: ='1. Info'!$G$20 -> EB-2025-0014 | C24: ='1. Info'!$G$28 -> 2026 | D24: ='1. Info'!$G$30 -> 2025 | E24: ='1. Info'!$G$32 -> 2021 | F24: Short-term debt Capitalization Ratio (%) | G24: Capitalization | H24: ='3. Data_Input_Sheet'!E56 -> 0.04 | I24: ='3. Data_Input_Sheet'!U56 -> 0.04
A25: ='1. Info'!$G$16 -> Oshawa PUC Networks Inc. | B25: ='1. Info'!$G$20 -> EB-2025-0014 | C25: ='1. Info'!$G$28 -> 2026 | D25: ='1. Info'!$G$30 -> 2025 | E25: ='1. Info'!$G$32 -> 2021 | F25: Common Equity Capitalization Ratio (%) | G25: Capitalization | H25: ='3. Data_Input_Sheet'!E57 -> 0.4 | I25: ='3. Data_Input_Sheet'!U57 -> 0.4
A26: ='1. Info'!$G$16 -> Oshawa PUC Networks Inc. | B26: ='1. Info'!$G$20 -> EB-2025-0014 | C26: ='1. Info'!$G$28 -> 2026 | D26: ='1. Info'!$G$30 -> 2025 | E26: ='1. Info'!$G$32 -> 2021 | F26: Prefered Shares Capitalization Ratio (%) | G26: Capitalization | H26: ='3. Data_Input_Sheet'!E58 -> 0 | I26: ='3. Data_Input_Sheet'!U58 -> 0
A27: ='1. Info'!$G$16 -> Oshawa PUC Networks Inc. | B27: ='1. Info'!$G$20 -> EB-2025-0014 | C27: ='1. Info'!$G$28 -> 2026 | D27: ='1. Info'!$G$30 -> 2025 | E27: ='1. Info'!$G$32 -> 2021 | F27: Long-term debt Cost Rate (%) | G27: Cost of Capital | H27: ='3. Data_Input_Sheet'!E62 -> 0.0341 | I27: ='3. Data_Input_Sheet'!U62 -> 0.0341
A28: ='1. Info'!$G$16 -> Oshawa PUC Networks Inc. | B28: ='1. Info'!$G$20 -> EB-2025-0014 | C28: ='1. Info'!$G$28 -> 2026 | D28: ='1. Info'!$G$30 -> 2025 | E28: ='1. Info'!$G$32 -> 2021 | F28: Short-term debt Cost Rate (%) | G28: Cost of Capital | H28: ='3. Data_Input_Sheet'!E63 -> 0.0391 | I28: ='3. Data_Input_Sheet'!U63 -> 0.0391
A29: ='1. Info'!$G$16 -> Oshawa PUC Networks Inc. | B29: ='1. Info'!$G$20 -> EB-2025-0014 | C29: ='1. Info'!$G$28 -> 2026 | D29: ='1. Info'!$G$30 -> 2025 | E29: ='1. Info'!$G$32 -> 2021 | F29: Common Equity Cost Rate (%) | G29: Cost of Capital | H29: ='3. Data_Input_Sheet'!E64 -> 0.09 | I29: ='3. Data_Input_Sheet'!U64 -> 0.09
A30: ='1. Info'!$G$16 -> Oshawa PUC Networks Inc. | B30: ='1. Info'!$G$20 -> EB-2025-0014 | C30: ='1. Info'!$G$28 -> 2026 | D30: ='1. Info'!$G$30 -> 2025 | E30: ='1. Info'!$G$32 -> 2021 | F30: Prefered Shares Cost Rate (%) | G30: Cost of Capital | H30: ='3. Data_Input_Sheet'!E65 -> 0 | I30: ='3. Data_Input_Sheet'!U65 -> 0

Sheet 4. Rate_Base
B6: Rate Base and Working Capital
D10: Rate Base
B11: Line No. | D11: Particulars | G11: Initial Application | K11: =IF(ISBLANK('3. Data_Input_Sheet'!M12),"",'3. Data_Input_Sheet'!I12) -> Adjustments | O11: =IF(ISBLANK('3. Data_Input_Sheet'!M12)," ",'3. Data_Input_Sheet'!M12) -> Interrogatory Responses | S11: =IF(ISBLANK('3. Data_Input_Sheet'!Q12),"",'3. Data_Input_Sheet'!Q12) -> Adjustments | W11: =IF(ISBLANK('3. Data_Input_Sheet'!U12)," ",'3. Data_Input_Sheet'!U12) -> Settlement Agreement | Y11: =IF(ISBLANK('3. Data_Input_Sheet'!Y12),"",'3. Data_Input_Sheet'!Y12) -> Adjustments | AC11: =IF(ISBLANK('3. Data_Input_Sheet'!AC12)," ",'3. Data_Input_Sheet'!AC12) -> Per Board Decision
B13: 1 | D13: Gross Fixed Assets (average) | E13: (2) | G13: =IFERROR('3. Data_Input_Sheet'!E16,0) -> 301724307.9 | K13: =IFERROR('3. Data_Input_Sheet'!I16,0) -> 0 | O13: =IFERROR(G13+K13,0) -> 301724307.9 | S13: ='3. Data_Input_Sheet'!Q16 -> 0 | W13: =IFERROR(G13+K13+S13,0) -> 301724307.9 | Y13: ='3. Data_Input_Sheet'!Y16 -> -3405173.655 | AC13: =IFERROR(Y13+W13,0) -> 298319134.2
B14: 2 | D14: Accumulated Depreciation (average) | E14: (2) | G14: =IFERROR('3. Data_Input_Sheet'!E17,0) -> -129563334.2 | K14: =IFERROR('3. Data_Input_Sheet'!I17,0) -> 0 | O14: =IFERROR(G14+K14,0) -> -129563334.2 | S14: ='3. Data_Input_Sheet'!Q17 -> 0 | W14: =IFERROR(G14+K14+S14,0) -> -129563334.2 | Y14: ='3. Data_Input_Sheet'!Y17 -> 418656.37 | AC14: =IFERROR(Y14+W14,0) -> -129144677.8
B15: 3 | D15: Net Fixed Assets (average) | E15: (2) | G15: =IFERROR(SUM(G13:G14),0) -> 172160973.7 | K15: =IFERROR(SUM(K13:K14),0) -> 0 | O15: =SUM(O13:O14) -> 172160973.7 | S15: =IFERROR(SUM(S13:S14),0) -> 0 | W15: =IFERROR(SUM(W13:W14),0) -> 172160973.7 | Y15: =IFERROR(SUM(Y13:Y14),0) -> -2986517.285 | AC15: =IFERROR(SUM(AC13:AC14),0) -> 169174456.4
B17: 4 | D17: Allowance for Working Capital | E17: (1) | G17: =IFERROR(G30,0) -> 11797711.34 | K17: =IFERROR(K30,0) -> -42692.58572 | O17: =IFERROR(O30,0) -> 11755018.75 | S17: =IFERROR(S30,0) -> 44322.07632 | W17: =IFERROR(W30,0) -> 11799340.83 | Y17: =IFERROR(Y30,0) -> 762392.0286 | AC17: =IFERROR(AC30,0) -> 12561732.86
B19: 5 | D19: Total Rate Base | G19: =IFERROR(G17+G15,0) -> 183958685 | K19: =IFERROR(K17+K15,0) -> -42692.58572 | O19: =IFERROR(O17+O15,0) -> 183915992.4 | S19: =IFERROR(S17+S15,0) -> 44322.07632 | W19: =IFERROR(W15+W17,0) -> 183960314.5 | Y19: =IFERROR(Y17+Y15,0) -> -2224125.256 | AC19: =IFERROR(AC15+AC17,0) -> 181736189.3
C20: (1) | D20: Allowance for Working Capital - Derivation
B24: 6 | D24: Controllable Expenses | G24: =IFERROR('3. Data_Input_Sheet'!E19,0) -> 22436551.69 | K24: ='3. Data_Input_Sheet'!I19 -> 0 | O24: =IFERROR(G24+K24,0) -> 22436551.69 | S24: ='3. Data_Input_Sheet'!Q19 -> 0 | W24: =IFERROR(G24+K24+S24,0) -> 22436551.69 | Y24: ='3. Data_Input_Sheet'!Y19 -> -2771990.05 | AC24: =IFERROR(Y24+W24,0) -> 19664561.64
B25: 7 | D25: Cost of Power | G25: =IFERROR('3. Data_Input_Sheet'!E20,0) -> 134866266.2 | K25: ='3. Data_Input_Sheet'!I20 -> -569234.4762 | O25: =IFERROR(G25+K25,0) -> 134297031.7 | S25: ='3. Data_Input_Sheet'!Q20 -> 590961.0176 | W25: =IFERROR(G25+K25+S25,0) -> 134887992.7 | Y25: ='3. Data_Input_Sheet'!Y20 -> 12937217.1 | AC25: =IFERROR(Y25+W25,0) -> 147825209.8
B26: 8 | D26: Working Capital Base | G26: =IFERROR(SUM(G24:G25),0) -> 157302817.9 | K26: =IFERROR(K24+K25,0) -> -569234.4762 | O26: =SUM(O24:O25) -> 156733583.4 | S26: =IFERROR(S24+S25,0) -> 590961.0176 | W26: =IFERROR(SUM(W24:W25),0) -> 157324544.4 | Y26: =IFERROR(Y24+Y25,0) -> 10165227.05 | AC26: =IFERROR(SUM(AC24:AC25),0) -> 167489771.5
B28: 9 | D28: Working Capital Rate % | E28: (1) | G28: =IFERROR('3. Data_Input_Sheet'!E21,0) -> 0.075 | K28: =IFERROR(O28-G28,0) -> 0 | O28: =IFERROR('3. Data_Input_Sheet'!M21,0) -> 0.075 | S28: =IFERROR(W28-O28,0) -> 0 | W28: =IFERROR('3. Data_Input_Sheet'!U21,0) -> 0.075 | Y28: =IFERROR(AC28-W28,0) -> 0 | AC28: =IFERROR('3. Data_Input_Sheet'!AC21,0) -> 0.075
B30: 10 | D30: Working Capital Allowance | G30: =IFERROR(G26*G28,0) -> 11797711.34 | K30: =IFERROR(O30-G30,0) -> -42692.58572 | O30: =IFERROR(O26*O28,0) -> 11755018.75 | S30: =IFERROR(W30-O30,0) -> 44322.07632 | W30: =IFERROR(W26*W28,0) -> 11799340.83 | Y30: =IFERROR(AC30-W30,0) -> 762392.0286 | AC30: =IFERROR(AC26*AC28,0) -> 12561732.86
B33: Notes
B34: (1) | D34: Some Applicants may have a unique rate as a result of a lead-lag study. The default rate for cost of service applications is 7.5%, per the letter issued by the OEB on June 3, 2015.
B35: (2) | D35: Average of opening and closing balances for the year.

Sheet 5. Utility Income
B11: Utility Income
B13: Line No. | D13: Particulars | F13: Initial Application | J13: =IF(N13="","","Adjustments") -> Adjustments | N13: =IF(ISBLANK('3. Data_Input_Sheet'!M12),"",'3. Data_Input_Sheet'!M12) -> Interrogatory Responses | R13: =IF(N13="","","Adjustments") -> Adjustments | V13: =IF(ISBLANK('3. Data_Input_Sheet'!U12),"",'3. Data_Input_Sheet'!U12) -> Settlement Agreement | Z13: =IF(V13="","","Adjustments") -> Adjustments | AD13: ='3. Data_Input_Sheet'!AC12 -> Per Board Decision
D15: Operating Revenues:
B16: 1 | D16: Distribution Revenue (at Proposed Rates) | F16: ='3. Data_Input_Sheet'!E26 -> 38848892.25 | J16: =N16-F16 -> -2778.456907 | N16: ='3. Data_Input_Sheet'!M26 -> 38846113.8 | R16: =V16-N16 -> -346296.7112 | V16: =IF(ISBLANK('3. Data_Input_Sheet'!U26),'5. Utility Income'!N16,'3. Data_Input_Sheet'!U26) -> 38499817.09 | Z16: =AD16-V16 -> -3461350.3 | AD16: =IF(ISBLANK('3. Data_Input_Sheet'!AC26),'5. Utility Income'!V16,'3. Data_Input_Sheet'!AC26) -> 35038466.79
B17: 2 | D17: Other Revenue | E17: (1) | F17: =F48 -> 3478106.86 | J17: =N17-F17 -> 359.495 | N17: =N48 -> 3478466.355 | R17: =V17-N17 -> 348808 | V17: =V48 -> 3827274.355 | Z17: =AD17-V17 -> 0 | AD17: =AD48 -> 3827274.355
F18: =SUM(F16:F17) -> 42326999.11 | J18: =SUM(J16:J17) -> -2418.961907 | N18: =SUM(N16:N17) -> 42324580.15 | R18: =SUM(R16:R17) -> 2511.288844 | V18: =SUM(V16:V17) -> 42327091.44 | Z18: =SUM(Z16:Z17) -> -3461350.3 | AD18: =SUM(AD16:AD17) -> 38865741.14
B19: 3 | D19: Total Operating Revenues
D21: Operating Expenses:
B22: 4 | D22: OM+A Expenses | F22: ='3. Data_Input_Sheet'!E36 -> 22271990.05 | J22: ='3. Data_Input_Sheet'!I36 -> 0 | N22: ='3. Data_Input_Sheet'!M36 -> 22271990.05 | R22: ='3. Data_Input_Sheet'!Q36 -> 0 | V22: ='3. Data_Input_Sheet'!U36 -> 22271990.05 | Z22: ='3. Data_Input_Sheet'!Y36 -> -2771990.05 | AD22: ='3. Data_Input_Sheet'!AC36 -> 19500000
B23: 5 | D23: Depreciation/Amortization | F23: ='3. Data_Input_Sheet'!E37 -> 9467348.33 | J23: ='3. Data_Input_Sheet'!I37 -> 0 | N23: ='3. Data_Input_Sheet'!M37 -> 9467348.33 | R23: ='3. Data_Input_Sheet'!Q37 -> 0 | V23: ='3. Data_Input_Sheet'!U37 -> 9467348.33 | Z23: ='3. Data_Input_Sheet'!Y37 -> -556798.81 | AD23: ='3. Data_Input_Sheet'!AC37 -> 8910549.52
B24: 6 | D24: Property taxes | F24: ='3. Data_Input_Sheet'!E38 -> 164561.64 | J24: ='3. Data_Input_Sheet'!I38 -> 0 | N24: ='3. Data_Input_Sheet'!M38 -> 164561.64 | R24: ='3. Data_Input_Sheet'!Q38 -> 0 | V24: ='3. Data_Input_Sheet'!U38 -> 164561.64 | Z24: ='3. Data_Input_Sheet'!Y38 -> 0 | AD24: ='3. Data_Input_Sheet'!AC38 -> 164561.64
B25: 7 | D25: Capital taxes | F25: ='6. Taxes_PILs'!G25 -> 0 | J25: =N25-F25 -> 0 | N25: ='6. Taxes_PILs'!K25 -> 0 | R25: =V25-N25 -> 0 | V25: ='6. Taxes_PILs'!O25 -> 0 | Z25: =AD25-V25 -> 0 | AD25: ='6. Taxes_PILs'!W25 -> 0
B26: 8 | D26: Other expense | F26: ='3. Data_Input_Sheet'!E40 -> 0 | J26: ='3. Data_Input_Sheet'!I40 ->  | N26: ='3. Data_Input_Sheet'!M40 -> 0 | R26: ='3. Data_Input_Sheet'!Q40 ->  | V26: ='3. Data_Input_Sheet'!U40 -> 0 | Z26: ='3. Data_Input_Sheet'!Y40 ->  | AD26: ='3. Data_Input_Sheet'!AC40 -> 0
F27: =SUM(F22:F26) -> 31903900.02 | J27: =SUM(J22:J26) -> 0 | N27: =SUM(N22:N26) -> 31903900.02 | R27: =SUM(R22:R26) -> 0 | V27: =SUM(V22:V26) -> 31903900.02 | Z27: =SUM(Z22:Z26) -> -3328788.86 | AD27: =SUM(AD22:AD26) -> 28575111.16
B28: 9 | D28: Subtotal (lines 4 to 8)
B30: 10 | D30: Deemed Interest Expense | F30: ='7. Cost_of_Capital'!P19 -> 3800586.433 | J30: =N30-F30 -> -882.0288209 | N30: ='7. Cost_of_Capital'!P36 -> 3799704.404 | R30: =V30-N30 -> 915.6940967 | V30: ='7. Cost_of_Capital'!P53 -> 3800620.098 | Z30: =AD30-V30 -> -132456.8539 | AD30: ='7. Cost_of_Capital'!P70 -> 3668163.244
B32: 11 | D32: Total Expenses (lines 9 to 10) | F32: =F27+F30 -> 35704486.45 | J32: =J30+J27 -> -882.0288209 | N32: =N30+N27 -> 35703604.42 | R32: =R30+R27 -> 915.6940967 | V32: =V27+V30 -> 35704520.12 | Z32: =Z30+Z27 -> -3461245.714 | AD32: =AD27+AD30 -> 32243274.4
B34: 12 | D34: Utility income before income taxes | F34: =F18-(F32) -> 6622512.661 | J34: =J18-(J32) -> -1536.933086 | N34: =N18-(N32) -> 6620975.728 | R34: =R18-(R32) -> 1595.594747 | V34: =V18-(V32) -> 6622571.322 | Z34: =Z18-(Z32) -> -104.5859583 | AD34: =AD18-(AD32) -> 6622466.736
F35: ='6. Taxes_PILs'!G31 -> 0 | J35: =N35-F35 -> 0 | N35: ='6. Taxes_PILs'!K31 -> 0 | R35: =V35-N35 -> 0 | V35: =IF('6. Taxes_PILs'!O31=0,N35,'6. Taxes_PILs'!O31) -> 0 | Z35: =AD35-V35 -> 0 | AD35: =IF('6. Taxes_PILs'!S31=0,V35,'6. Taxes_PILs'!S31) -> 0
B36: 13 | D36: Income taxes (grossed-up)
F37: =F34-F35 -> 6622512.661 | J37: =J34-J35 -> -1536.933086 | N37: =N34-N35 -> 6620975.728 | R37: =R34-R35 -> 1595.594747 | V37: =V34-V35 -> 6622571.322 | Z37: =Z34-Z35 -> -104.5859583 | AD37: =AD34-AD35 -> 6622466.736
B38: 14 | D38: Utility net income
B44: (1) | D44: Specific Service Charges | F44: ='3. Data_Input_Sheet'!E28 -> 411466.2 | J44: ='3. Data_Input_Sheet'!I28 -> 25.24 | N44: ='3. Data_Input_Sheet'!M28 -> 411491.44 | R44: ='3. Data_Input_Sheet'!Q28 -> 0 | V44: =IF(ISBLANK('3. Data_Input_Sheet'!U28),N44,'3. Data_Input_Sheet'!U28) -> 411491.44 | Z44: ='3. Data_Input_Sheet'!Y28 -> 0 | AD44: =IF(ISBLANK('3. Data_Input_Sheet'!AC28),V44,'3. Data_Input_Sheet'!AC28) -> 411491.44
D45: Late Payment Charges | F45: ='3. Data_Input_Sheet'!E29 -> 416050.08 | J45: ='3. Data_Input_Sheet'!I29 -> 0 | N45: ='3. Data_Input_Sheet'!M29 -> 416050.08 | R45: ='3. Data_Input_Sheet'!Q29 -> 284000 | V45: =IF(ISBLANK('3. Data_Input_Sheet'!U29),N45,'3. Data_Input_Sheet'!U29) -> 700050.08 | Z45: ='3. Data_Input_Sheet'!Y29 -> 0 | AD45: =IF(ISBLANK('3. Data_Input_Sheet'!AC29),V45,'3. Data_Input_Sheet'!AC29) -> 700050.08
D46: Other Distribution Revenue | F46: ='3. Data_Input_Sheet'!E30 -> 2131572.86 | J46: ='3. Data_Input_Sheet'!I30 -> 334.255 | N46: ='3. Data_Input_Sheet'!M30 -> 2131907.115 | R46: ='3. Data_Input_Sheet'!Q30 -> 0 | V46: =IF(ISBLANK('3. Data_Input_Sheet'!U30),N46,'3. Data_Input_Sheet'!U30) -> 2131907.115 | Z46: ='3. Data_Input_Sheet'!Y30 -> 0 | AD46: =IF(ISBLANK('3. Data_Input_Sheet'!AC30),V46,'3. Data_Input_Sheet'!AC30) -> 2131907.115
D47: Other Income and Deductions | F47: ='3. Data_Input_Sheet'!E31 -> 519017.72 | J47: ='3. Data_Input_Sheet'!I31 -> 0 | N47: ='3. Data_Input_Sheet'!M31 -> 519017.72 | R47: ='3. Data_Input_Sheet'!Q31 -> 64808 | V47: =IF(ISBLANK('3. Data_Input_Sheet'!U31),N47,'3. Data_Input_Sheet'!U31) -> 583825.72 | Z47: ='3. Data_Input_Sheet'!Y31 -> 0 | AD47: =IF(ISBLANK('3. Data_Input_Sheet'!AC31),V47,'3. Data_Input_Sheet'!AC31) -> 583825.72
F48: =SUM(F44:F47) -> 3478106.86 | J48: =SUM(J44:J47) -> 359.495 | N48: =SUM(N44:N47) -> 3478466.355 | R48: =SUM(R44:R47) -> 348808 | V48: =SUM(V44:V47) -> 3827274.355 | Z48: =SUM(Z44:Z47) -> 0 | AD48: =SUM(AD44:AD47) -> 3827274.355
D49: Total Revenue Offsets
B51: Notes

Sheet 6. Taxes_PILs
B9: Taxes/PILs
B12: Line No. | D12: Particulars | G12: Application | K12: =IF(ISBLANK('3. Data_Input_Sheet'!M12),"",'3. Data_Input_Sheet'!M12) -> Interrogatory Responses | O12: =IF(ISBLANK('3. Data_Input_Sheet'!U12),"",'3. Data_Input_Sheet'!U12) -> Settlement Agreement | S12: ='3. Data_Input_Sheet'!AC12 -> Per Board Decision
D14: Determination of Taxable Income
B16: 1 | D16: Utility net income before taxes | G16: ='7. Cost_of_Capital'!P22 -> 6622512.661 | K16: ='7. Cost_of_Capital'!P39 -> 6620975.728 | O16: ='7. Cost_of_Capital'!P56 -> 6622571.322 | S16: ='7. Cost_of_Capital'!P73 -> 6622466.736
B18: 2 | D18: Adjustments required to arrive at taxable utility income | G18: ='3. Data_Input_Sheet'!E44 -> -6622513 | K18: ='3. Data_Input_Sheet'!M44 -> -6620975.728 | O18: =IF(ISBLANK('3. Data_Input_Sheet'!U44),K18,'3. Data_Input_Sheet'!U44) -> -6622571.322 | S18: =IF(ISBLANK('3. Data_Input_Sheet'!AC44),O18,'3. Data_Input_Sheet'!AC44) -> -6622466.736
B20: 3 | D20: Taxable income | G20: =G16+G18 -> -0.3392964499 | K20: =K16+K18 -> 0 | O20: =O16+O18 -> 0 | S20: =S16+S18 -> 0
D22: Calculation of Utility income Taxes
B24: 4 | D24: Income taxes | G24: ='3. Data_Input_Sheet'!E46 -> 0 | K24: =IF(ISBLANK('3. Data_Input_Sheet'!M46),'6. Taxes_PILs'!G24,'3. Data_Input_Sheet'!M46) -> 0 | O24: =IF(ISBLANK('3. Data_Input_Sheet'!U46),'6. Taxes_PILs'!K24,'3. Data_Input_Sheet'!U46) -> 0 | S24: =IF(ISBLANK('3. Data_Input_Sheet'!AC46),'6. Taxes_PILs'!O24,'3. Data_Input_Sheet'!AC46) -> 0
B25: 5 | D25: Capital taxes | G25: ='3. Data_Input_Sheet'!E48 -> 0 | K25: =IF(ISBLANK('3. Data_Input_Sheet'!M48),'6. Taxes_PILs'!G25,'3. Data_Input_Sheet'!M48) -> 0 | O25: =IF(ISBLANK('3. Data_Input_Sheet'!U48),'6. Taxes_PILs'!K25,'3. Data_Input_Sheet'!U48) -> 0 | S25: =IF(ISBLANK('3. Data_Input_Sheet'!Y48),'6. Taxes_PILs'!O25,'3. Data_Input_Sheet'!Y48) -> 0
G26: =SUM(G24:G25) -> 0 | K26: =SUM(K24:K25) -> 0 | O26: =SUM(O24:O25) -> 0 | S26: =SUM(S24:S25) -> 0
B27: 6 | D27: Total taxes
B29: 7 | D29: Gross-up of Income Taxes | G29: =(G24/(1-G41))-G24 -> 0 | K29: =(K24/(1-K41))-K24 -> 0 | O29: =(O24/(1-O41))-O24 -> 0 | S29: =(S24/(1-S41))-S24 -> 0
B31: 8 | D31: Grossed-up Income Taxes | G31: =G24+G29 -> 0 | K31: =K24+K29 -> 0 | O31: =O24+O29 -> 0 | S31: =S24+S29 -> 0
B33: 9 | D33: PILs / tax Allowance (Grossed-up Income taxes + Capital taxes) | G33: =G26+G29 -> 0 | K33: =K29+K26 -> 0 | O33: =O29+O26 -> 0 | S33: =S29+S26 -> 0
B35: 10 | D35: Other tax Credits | G35: ='3. Data_Input_Sheet'!E51 -> 0 | K35: =IF(ISBLANK('3. Data_Input_Sheet'!M51),G35,'3. Data_Input_Sheet'!M51) -> 0 | O35: =IF(ISBLANK('3. Data_Input_Sheet'!U51),K35,'3. Data_Input_Sheet'!U51) -> 0 | S35: =IF(ISBLANK('3. Data_Input_Sheet'!AC51),O35,'3. Data_Input_Sheet'!AC51) -> 0
D37: Tax Rates
B39: 11 | D39: Federal tax (%) | G39: ='3. Data_Input_Sheet'!E49 -> 0.15 | K39: =IF(ISBLANK('3. Data_Input_Sheet'!M49),G39,'3. Data_Input_Sheet'!M49) -> 0.15 | O39: =IF(ISBLANK('3. Data_Input_Sheet'!U49),K39,'3. Data_Input_Sheet'!U49) -> 0.15 | S39: =IF(ISBLANK('3. Data_Input_Sheet'!AC49),O39,'3. Data_Input_Sheet'!AC49) -> 0.15
B40: 12 | D40: Provincial tax (%) | G40: ='3. Data_Input_Sheet'!E50 -> 0.115 | K40: =IF(ISBLANK('3. Data_Input_Sheet'!M50),G40,'3. Data_Input_Sheet'!M50) -> 0.115 | O40: =IF(ISBLANK('3. Data_Input_Sheet'!U50),K40,'3. Data_Input_Sheet'!U50) -> 0.115 | S40: =IF(ISBLANK('3. Data_Input_Sheet'!AC50),O40,'3. Data_Input_Sheet'!AC50) -> 0.115
B41: 13 | D41: Total tax rate (%) | G41: =G39+G40 -> 0.265 | K41: =K39+K40 -> 0.265 | O41: =O39+O40 -> 0.265 | S41: =S39+S40 -> 0.265
B44: Notes
D45: Capital Taxes not applicable after July 1, 2010 (i.e. for 2011 and later test years)

Sheet 7. Cost_of_Capital
B5: Capitalization/Cost of Capital
B11: Line No. | D11: Particulars | F11: Capitalization Ratio | L11: Cost Rate | P11: Return
F13: Initial Application
F15: (%) | J15: ($) | L15: (%) | P15: ($)
D16: Debt
B17: 1 | D17: Long-term Debt | F17: ='3. Data_Input_Sheet'!E55 -> 0.56 | J17: =$J$26*F17 -> 103016863.6 | L17: ='3. Data_Input_Sheet'!E62 -> 0.0341 | P17: =L17*J17 -> 3512875.049
B18: 2 | D18: Short-term Debt | F18: ='3. Data_Input_Sheet'!E56 -> 0.04 | J18: =$J$26*F18 -> 7358347.401 | L18: ='3. Data_Input_Sheet'!E63 -> 0.0391 | P18: =L18*J18 -> 287711.3834
B19: 3 | D19: Total Debt | F19: =SUM(F17:F18) -> 0.6 | J19: =SUM(J17:J18) -> 110375211 | L19: =IF(F19=0,0,SUMPRODUCT(F17:F18,L17:L18)/F19) -> 0.03443333333 | P19: =SUM(P17:P18) -> 3800586.433
D21: Equity
B22: 4 | D22: Common Equity | F22: ='3. Data_Input_Sheet'!E57 -> 0.4 | J22: =$J$26*F22 -> 73583474.01 | L22: ='3. Data_Input_Sheet'!E64 -> 0.09 | P22: =L22*J22 -> 6622512.661
B23: 5 | D23: Preferred Shares | F23: ='3. Data_Input_Sheet'!E58 -> 0 | J23: =$J$26*F23 -> 0 | L23: ='3. Data_Input_Sheet'!E65 -> 0 | P23: =L23*J23 -> 0
B24: 6 | D24: Total Equity | F24: =SUM(F22:F23) -> 0.4 | J24: =SUM(J22:J23) -> 73583474.01 | L24: =IF(F24=0,0,SUMPRODUCT(F22:F23,L22:L23)/F24) -> 0.09 | P24: =SUM(P22:P23) -> 6622512.661
B26: 7 | D26: Total | F26: =SUM(F19,F24) -> 1 | J26: ='4. Rate_Base'!G19 -> 183958685 | L26: =(L19*F19)+(L24*F24) -> 0.05666 | P26: =P19+P24 -> 10423099.09
F29: ='1. Info'!AC1 -> Interrogatory Responses
F31: (%) | J31: ($) | L31: (%) | P31: ($)
D32: Debt
B33: 1 | D33: Long-term Debt (Actual) | F33: =+J33/J43 -> 0.6073425074 | J33: 111700000 | L33: ='3. Data_Input_Sheet'!M62 -> 0.0341 | P33: =L33*J33 -> 3808970
D34: Long-term Debt (Notional) | F34: =+J34/J43 -> -0.04734250742 | J34: =+J43*0.56-J33 -> -8707044.237 | L34: 0.0341 | P34: =L34*J34 -> -296910.2085
B35: 2 | D35: Short-term Debt | F35: ='3. Data_Input_Sheet'!M56 -> 0.04 | J35: =$J$43*F35 -> 7356639.697 | L35: ='3. Data_Input_Sheet'!M63 -> 0.0391 | P35: =L35*J35 -> 287644.6122
B36: 3 | D36: Total Debt | F36: =SUM(F33:F35) -> 0.6 | J36: =SUM(J33:J35) -> 110349595.5 | L36: =IF(F36=0,0,SUMPRODUCT(F33:F35,L33:L35)/F36) -> 0.03443333333 | P36: =SUM(P33:P35) -> 3799704.404
D38: Equity
B39: 4 | D39: Common Equity | F39: ='3. Data_Input_Sheet'!M57 -> 0.4 | J39: =$J$43*F39 -> 73566396.97 | L39: ='3. Data_Input_Sheet'!M64 -> 0.09 | P39: =L39*J39 -> 6620975.728
B40: 5 | D40: Preferred Shares | F40: ='3. Data_Input_Sheet'!M58 -> 0 | J40: =$J$43*F40 -> 0 | L40: ='3. Data_Input_Sheet'!M65 -> 0 | P40: =L40*J40 -> 0
B41: 6 | D41: Total Equity | F41: =SUM(F39:F40) -> 0.4 | J41: =SUM(J39:J40) -> 73566396.97 | L41: =IF(F41=0,0,SUMPRODUCT(F39:F40,L39:L40)/F41) -> 0.09 | P41: =SUM(P39:P40) -> 6620975.728
B43: 7 | D43: Total | F43: =F36+F41 -> 1 | J43: ='4. Rate_Base'!O19 -> 183915992.4 | L43: =(L36*F36)+(L41*F41) -> 0.05666 | P43: =P36+P41 -> 10420680.13
F46: ='1. Info'!AC2 -> Settlement Agreement
F48: (%) | J48: ($) | L48: (%) | P48: ($)
D49: Debt
B50: 8 | D50: Long-term Debt (Actual) | F50: =+J50/J60 -> 0.6071961787 | J50: =J33 -> 111700000 | L50: =IF(ISBLANK('3. Data_Input_Sheet'!U62),L17,'3. Data_Input_Sheet'!U62) -> 0.0341 | P50: =L50*J50 -> 3808970
D51: Long-term Debt (Notional) | F51: =+J51/J60 -> -0.04719617868 | J51: =+J60*0.56-J50 -> -8682223.874 | L51: 0.0341 | P51: =L51*J51 -> -296063.8341
B52: 9 | D52: Short-term Debt | F52: =IF(ISBLANK('3. Data_Input_Sheet'!U56),F35,'3. Data_Input_Sheet'!U56) -> 0.04 | J52: =$J$60*F52 -> 7358412.58 | L52: =IF(ISBLANK('3. Data_Input_Sheet'!U63),L18,'3. Data_Input_Sheet'!U63) -> 0.0391 | P52: =L52*J52 -> 287713.9319
B53: 10 | D53: Total Debt | F53: =SUM(F50:F52) -> 0.6 | J53: =SUM(J50:J52) -> 110376188.7 | L53: =IF(F53=0,0,SUMPRODUCT(F50:F52,L50:L52)/F53) -> 0.03443333333 | P53: =SUM(P50:P52) -> 3800620.098
D55: Equity
B56: 11 | D56: Common Equity | F56: =IF(ISBLANK('3. Data_Input_Sheet'!U57),F39,'3. Data_Input_Sheet'!U57) -> 0.4 | J56: =$J$60*F56 -> 73584125.8 | L56: =IF(ISBLANK('3. Data_Input_Sheet'!U64),L22,'3. Data_Input_Sheet'!U64) -> 0.09 | P56: =L56*J56 -> 6622571.322
B57: 12 | D57: Preferred Shares | F57: =IF(ISBLANK('3. Data_Input_Sheet'!U58),F40,'3. Data_Input_Sheet'!U58) -> 0 | J57: =$J$60*F57 -> 0 | L57: =IF(ISBLANK('3. Data_Input_Sheet'!U65),L23,'3. Data_Input_Sheet'!U65) -> 0 | P57: =L57*J57 -> 0
B58: 13 | D58: Total Equity | F58: =SUM(F56:F57) -> 0.4 | J58: =SUM(J56:J57) -> 73584125.8 | L58: =IF(F58=0,0,SUMPRODUCT(F56:F57,L56:L57)/F58) -> 0.09 | P58: =SUM(P56:P57) -> 6622571.322
B60: 14 | D60: Total | F60: =F53+F58 -> 1 | J60: ='4. Rate_Base'!W19 -> 183960314.5 | L60: =(L53*F53)+(L58*F58) -> 0.05666 | P60: =P53+P58 -> 10423191.42
F63: Per Board Decision
F65: (%) | J65: ($) | L65: (%) | P65: ($)
D66: Debt
B67: 8 | D67: Long-term Debt (Actual) | F67: =+J67/J77 -> 0.6146271717 | J67: 111700000 | L67: =IF(ISBLANK('3. Data_Input_Sheet'!AC62),L50,'3. Data_Input_Sheet'!AC62) -> 0.0341 | P67: =L67*J67 -> 3808970
D68: Long-term Debt (Notional) | F68: =+J68/J77 -> -0.05462717172 | J68: =J77*0.56-J67 -> -9927734.018 | L68: 0.0341 | P68: =L68*J68 -> -338535.73
B69: 9 | D69: Short-term Debt | F69: =IF(ISBLANK('3. Data_Input_Sheet'!AC56),F52,'3. Data_Input_Sheet'!AC56) -> 0.04 | J69: =$J$77*F69 -> 7269447.57 | L69: =IF(ISBLANK('3. Data_Input_Sheet'!AC63),L52,'3. Data_Input_Sheet'!AC63) -> 0.0272 | P69: =L69*J69 -> 197728.9739
B70: 10 | D70: Total Debt | F70: =SUM(F67:F69) -> 0.6 | J70: =SUM(J67:J69) -> 109041713.6 | L70: =IF(F70=0,0,SUMPRODUCT(F67:F69,L67:L69)/F70) -> 0.03364 | P70: =SUM(P67:P69) -> 3668163.244
D72: Equity
B73: 11 | D73: Common Equity | F73: =IF(ISBLANK('3. Data_Input_Sheet'!AC57),F56,'3. Data_Input_Sheet'!AC57) -> 0.4 | J73: =$J$77*F73 -> 72694475.7 | L73: =IF(ISBLANK('3. Data_Input_Sheet'!AC64),L56,'3. Data_Input_Sheet'!AC64) -> 0.0911 | P73: =L73*J73 -> 6622466.736
B74: 12 | D74: Preferred Shares | F74: =IF(ISBLANK('3. Data_Input_Sheet'!AC58),F57,'3. Data_Input_Sheet'!AC58) -> 0 | J74: =$J$60*F74 -> 0 | L74: =IF(ISBLANK('3. Data_Input_Sheet'!AC65),L57,'3. Data_Input_Sheet'!AC65) -> 0 | P74: =L74*J74 -> 0
B75: 13 | D75: Total Equity | F75: =SUM(F73:F74) -> 0.4 | J75: =SUM(J73:J74) -> 72694475.7 | L75: =IF(F75=0,0,SUMPRODUCT(F73:F74,L73:L74)/F75) -> 0.0911 | P75: =SUM(P73:P74) -> 6622466.736
B77: 14 | D77: Total | F77: =F70+F75 -> 1 | J77: ='4. Rate_Base'!AC19 -> 181736189.3 | L77: =(L70*F70)+(L75*F75) -> 0.056624 | P77: =P70+P75 -> 10290629.98
B80: Notes

Sheet 8. Rev_Def_Suff
P1: =CONCATENATE('2. Table of Contents'!$F$6," ",'2. Table of Contents'!$G$6) -> 
B10: Revenue Deficiency/Sufficiency
F13: Initial Application | J13: =IF(ISBLANK('3. Data_Input_Sheet'!M12),"",'3. Data_Input_Sheet'!M12) -> Interrogatory Responses | N13: =IF(ISBLANK('3. Data_Input_Sheet'!U12),"",'3. Data_Input_Sheet'!U12) -> Settlement Agreement | R13: ='3. Data_Input_Sheet'!AC12 -> Per Board Decision
B15: Line No. | D15: Particulars | F15: At Current Approved Rates | H15: At Proposed Rates | J15: At Current Approved Rates | L15: At Proposed Rates | N15: At Current Approved Rates | P15: At Proposed Rates | R15: At Current Approved Rates | T15: At Proposed Rates
B19: 1 | D19: Revenue Deficiency from Below | H19: =F52 -> 6670155.983 | L19: =J52 -> 6802001.711 | P19: =N52 -> 6290640.735 | T19: =R52 -> 2811278.229
B20: 2 | D20: Distribution Revenue | F20: ='3. Data_Input_Sheet'!E25 -> 32178736.27 | H20: ='3. Data_Input_Sheet'!E26-H19 -> 32178736.27 | J20: =IF(ISBLANK('3. Data_Input_Sheet'!M25),'3. Data_Input_Sheet'!E25,'3. Data_Input_Sheet'!M25) -> 32044112.09 | L20: =IF(ISBLANK('3. Data_Input_Sheet'!M26),'3. Data_Input_Sheet'!E26-L19,'3. Data_Input_Sheet'!M26-L19) -> 32044112.09 | N20: =IF(ISBLANK('3. Data_Input_Sheet'!U25),'3. Data_Input_Sheet'!M25,'3. Data_Input_Sheet'!U25) -> 32209176.35 | P20: =IF(ISBLANK('3. Data_Input_Sheet'!U26),'3. Data_Input_Sheet'!M26-P19,'3. Data_Input_Sheet'!U26-P19) -> 32209176.35 | R20: =IF(ISBLANK('3. Data_Input_Sheet'!AC25),'3. Data_Input_Sheet'!U25,'3. Data_Input_Sheet'!AC25) -> 32227188.56 | T20: =IF(ISBLANK('3. Data_Input_Sheet'!AC26),'3. Data_Input_Sheet'!U26-T19,'3. Data_Input_Sheet'!AC26-T19) -> 32227188.56
B21: 3 | D21: Other Operating Revenue Offsets - net | F21: ='5. Utility Income'!F48 -> 3478106.86 | H21: ='5. Utility Income'!F48 -> 3478106.86 | J21: ='5. Utility Income'!N48 -> 3478466.355 | L21: =J21 -> 3478466.355 | N21: ='5. Utility Income'!V48 -> 3827274.355 | P21: ='5. Utility Income'!V48 -> 3827274.355 | R21: ='5. Utility Income'!AD48 -> 3827274.355 | T21: ='5. Utility Income'!AD48 -> 3827274.355
B22: 4 | D22: Total Revenue | F22: =SUM(F20:F21) -> 35656843.13 | H22: =SUM(H19:H21) -> 42326999.11 | J22: =SUM(J20:J21) -> 35522578.44 | L22: =SUM(L19:L21) -> 42324580.15 | N22: =SUM(N20:N21) -> 36036450.7 | P22: =SUM(P19:P21) -> 42327091.44 | R22: =SUM(R20:R21) -> 36054462.91 | T22: =SUM(T19:T21) -> 38865741.14
B24: 5 | D24: Operating Expenses | F24: ='5. Utility Income'!F27 -> 31903900.02 | H24: ='5. Utility Income'!F27 -> 31903900.02 | J24: ='5. Utility Income'!N27 -> 31903900.02 | L24: ='5. Utility Income'!N27 -> 31903900.02 | N24: ='5. Utility Income'!V27 -> 31903900.02 | P24: ='5. Utility Income'!V27 -> 31903900.02 | R24: ='5. Utility Income'!AD27 -> 28575111.16 | T24: ='5. Utility Income'!AD27 -> 28575111.16
B25: 6 | D25: Deemed Interest Expense | F25: ='5. Utility Income'!F30 -> 3800586.433 | H25: ='5. Utility Income'!F30 -> 3800586.433 | J25: ='5. Utility Income'!N30 -> 3799704.404 | L25: ='5. Utility Income'!N30 -> 3799704.404 | N25: ='5. Utility Income'!V30 -> 3800620.098 | P25: ='5. Utility Income'!V30 -> 3800620.098 | R25: ='5. Utility Income'!AD30 -> 3668163.244 | T25: ='5. Utility Income'!AD30 -> 3668163.244
B26: 8 | D26: Total Cost and Expenses | F26: =SUM(F24:F25) -> 35704486.45 | H26: =SUM(H24:H25) -> 35704486.45 | J26: =SUM(J24:J25) -> 35703604.42 | L26: =SUM(L24:L25) -> 35703604.42 | N26: =SUM(N24:N25) -> 35704520.12 | P26: =SUM(P24:P25) -> 35704520.12 | R26: =SUM(R24:R25) -> 32243274.4 | T26: =SUM(T24:T25) -> 32243274.4
B28: 9 | D28: Utility Income Before Income Taxes | F28: =F22-F26 -> -47643.32263 | H28: =H22-H26 -> 6622512.661 | J28: =J22-J26 -> -181025.983 | L28: =L22-L26 -> 6620975.728 | N28: =N22-N26 -> 331930.5872 | P28: =P22-P26 -> 6622571.322 | R28: =R22-R26 -> 3811188.507 | T28: =T22-T26 -> 6622466.736
B30: 10 | D30: Tax Adjustments to Accounting Income per 2013 PILs model | F30: ='3. Data_Input_Sheet'!E44 -> -6622513 | H30: ='3. Data_Input_Sheet'!E44 -> -6622513 | J30: =IF(ISBLANK('3. Data_Input_Sheet'!M44),'3. Data_Input_Sheet'!E44,'3. Data_Input_Sheet'!M44) -> -6620975.728 | L30: =IF(ISBLANK('3. Data_Input_Sheet'!M44),'3. Data_Input_Sheet'!E44,'3. Data_Input_Sheet'!M44) -> -6620975.728 | N30: =IF(ISBLANK('3. Data_Input_Sheet'!U44),'3. Data_Input_Sheet'!M44,'3. Data_Input_Sheet'!U44) -> -6622571.322 | P30: =IF(ISBLANK('3. Data_Input_Sheet'!U44),'3. Data_Input_Sheet'!M44,'3. Data_Input_Sheet'!U44) -> -6622571.322 | R30: =IF(ISBLANK('3. Data_Input_Sheet'!Y44),'3. Data_Input_Sheet'!Q44,'3. Data_Input_Sheet'!AC44) -> -6622466.736 | T30: =IF(ISBLANK('3. Data_Input_Sheet'!AC44),'3. Data_Input_Sheet'!U44,'3. Data_Input_Sheet'!AC44) -> -6622466.736
B31: 11 | D31: Taxable Income | F31: =SUM(F28:F30) -> -6670156.323 | H31: =SUM(H28:H30) -> -0.3392964527 | J31: =SUM(J28+J30) -> -6802001.711 | L31: =L28+L30 -> 0 | N31: =SUM(N28+N30) -> -6290640.735 | P31: =P28+P30 -> 0 | R31: =SUM(R28+R30) -> -2811278.229 | T31: =T28+T30 -> 0
B33: 12 | D33: Income Tax Rate | F33: ='6. Taxes_PILs'!G41 -> 0.265 | H33: ='6. Taxes_PILs'!G41 -> 0.265 | J33: ='6. Taxes_PILs'!K41 -> 0.265 | L33: ='6. Taxes_PILs'!K41 -> 0.265 | N33: ='6. Taxes_PILs'!O41 -> 0.265 | P33: ='6. Taxes_PILs'!O41 -> 0.265 | R33: ='6. Taxes_PILs'!S41 -> 0.265 | T33: ='6. Taxes_PILs'!S41 -> 0.265
B34: 13 | D34: Income Tax on Taxable Income | F34: =MAX(F31*F33,0) -> 0 | H34: =MAX(H31*H33,0) -> 0 | J34: =MAX(J31*J33,0) -> 0 | L34: =MAX(L31*L33,0) -> 0 | N34: =MAX(N31*N33,0) -> 0 | P34: =MAX(P31*P33,0) -> 0 | R34: =MAX(R31*R33,0) -> 0 | T34: =MAX(T31*T33,0) -> 0
B35: 14 | D35: Income Tax Credits | F35: ='3. Data_Input_Sheet'!E51 -> 0 | H35: ='3. Data_Input_Sheet'!E51 -> 0 | J35: =IF(ISBLANK('3. Data_Input_Sheet'!M51),'3. Data_Input_Sheet'!E51,'3. Data_Input_Sheet'!M51) -> 0 | L35: =IF(ISBLANK('3. Data_Input_Sheet'!M51),'3. Data_Input_Sheet'!E51,'3. Data_Input_Sheet'!M51) -> 0 | N35: =IF(ISBLANK('3. Data_Input_Sheet'!U51),'3. Data_Input_Sheet'!M51,'3. Data_Input_Sheet'!U51) -> 0 | P35: =IF(ISBLANK('3. Data_Input_Sheet'!U51),'3. Data_Input_Sheet'!M51,'3. Data_Input_Sheet'!U51) -> 0 | R35: =IF(ISBLANK('3. Data_Input_Sheet'!Y51),'3. Data_Input_Sheet'!Q51,'3. Data_Input_Sheet'!Y51) ->  | T35: =IF(ISBLANK('3. Data_Input_Sheet'!Y51),'3. Data_Input_Sheet'!Q51,'3. Data_Input_Sheet'!Y51) -> 
B36: 15 | D36: Utility Net Income | F36: =F28-SUM(F34:F35) -> -47643.32263 | H36: ='5. Utility Income'!F37 -> 6622512.661 | J36: =J28-SUM(J34:J35) -> -181025.983 | L36: ='5. Utility Income'!N37 -> 6620975.728 | N36: =N28-SUM(N34:N35) -> 331930.5872 | P36: ='5. Utility Income'!V37 -> 6622571.322 | R36: =R28-SUM(R34:R35) -> 3811188.507 | T36: ='5. Utility Income'!AD37 -> 6622466.736
B38: 16 | D38: Utility Rate Base | F38: ='4. Rate_Base'!G19 -> 183958685 | H38: ='4. Rate_Base'!G19 -> 183958685 | J38: ='4. Rate_Base'!O19 -> 183915992.4 | L38: ='4. Rate_Base'!O19 -> 183915992.4 | N38: ='4. Rate_Base'!W19 -> 183960314.5 | P38: ='4. Rate_Base'!W19 -> 183960314.5 | R38: ='4. Rate_Base'!AC19 -> 181736189.3 | T38: ='4. Rate_Base'!AC19 -> 181736189.3
B40: 17 | D40: Deemed Equity Portion of Rate Base | F40: ='7. Cost_of_Capital'!J24 -> 73583474.01 | H40: =F40 -> 73583474.01 | J40: ='7. Cost_of_Capital'!J41 -> 73566396.97 | L40: =J40 -> 73566396.97 | N40: ='7. Cost_of_Capital'!J58 -> 73584125.8 | P40: =N40 -> 73584125.8 | R40: ='7. Cost_of_Capital'!J75 -> 72694475.7 | T40: =R40 -> 72694475.7
B42: 18 | D42: Income/(Equity Portion of Rate Base) | F42: =IF(F40=0,0,F36/F40) -> -0.0006474731354 | H42: =IF(H40=0,0,H36/H40) -> 0.09 | J42: =IF(J40=0,0,J36/J40) -> -0.002460715632 | L42: =IF(L40=0,0,L36/L40) -> 0.09 | N42: =IF(N40=0,0,N36/N40) -> 0.004510899376 | P42: =IF(P40=0,0,P36/P40) -> 0.09 | R42: =IF(R40=0,0,R36/R40) -> 0.05242748462 | T42: =IF(T40=0,0,T36/T40) -> 0.0911
B43: 19 | D43: Target Return - Equity on Rate Base | F43: ='7. Cost_of_Capital'!L24 -> 0.09 | H43: ='7. Cost_of_Capital'!L24 -> 0.09 | J43: ='7. Cost_of_Capital'!L41 -> 0.09 | L43: ='7. Cost_of_Capital'!L41 -> 0.09 | N43: ='7. Cost_of_Capital'!L58 -> 0.09 | P43: ='7. Cost_of_Capital'!L58 -> 0.09 | R43: ='7. Cost_of_Capital'!L75 -> 0.0911 | T43: ='7. Cost_of_Capital'!L75 -> 0.0911
B44: 20 | D44: Deficiency/Sufficiency in Return on Equity | F44: =F42-F43 -> -0.09064747314 | H44: =H42-H43 -> 0 | J44: =J42-J43 -> -0.09246071563 | L44: =L42-L43 -> 0 | N44: =N42-N43 -> -0.08548910062 | P44: =P42-P43 -> 0 | R44: =R42-R43 -> -0.03867251538 | T44: =T42-T43 -> 0
B46: 21 | D46: Indicated Rate of Return | F46: =IF(F38=0,0,(F36+F25)/F38) -> 0.02040101075 | H46: =IF(H38=0,0,(H36+H25)/H38) -> 0.05666 | J46: =IF(J38=0,0,(J36+J25)/J38) -> 0.01967571375 | L46: =IF(L40=0,0,(L36+L25)/L38) -> 0.05666 | N46: =IF(N38=0,0,(N36+N25)/N38) -> 0.02246435975 | P46: =IF(P40=0,0,(P36+P25)/P38) -> 0.05666 | R46: =IF(R38=0,0,(R36+R25)/R38) -> 0.04115499385 | T46: =IF(T40=0,0,(T36+T25)/T38) -> 0.056624
B47: 22 | D47: Requested Rate of Return on Rate Base | F47: ='7. Cost_of_Capital'!L26 -> 0.05666 | H47: ='7. Cost_of_Capital'!L26 -> 0.05666 | J47: ='7. Cost_of_Capital'!L43 -> 0.05666 | L47: ='7. Cost_of_Capital'!L43 -> 0.05666 | N47: ='7. Cost_of_Capital'!L60 -> 0.05666 | P47: ='7. Cost_of_Capital'!L60 -> 0.05666 | R47: ='7. Cost_of_Capital'!L77 -> 0.056624 | T47: ='7. Cost_of_Capital'!L77 -> 0.056624
B48: 23 | D48: Deficiency/Sufficiency in Rate of Return | F48: =F46-F47 -> -0.03625898925 | H48: =H46-H47 -> 0 | J48: =J46-J47 -> -0.03698428625 | L48: =L46-L47 -> 0 | N48: =N46-N47 -> -0.03419564025 | P48: =P46-P47 -> 0 | R48: =R46-R47 -> -0.01546900615 | T48: =T46-T47 -> 0
B50: 24 | D50: Target Return on Equity | F50: =H50 -> 6622512.661 | H50: ='7. Cost_of_Capital'!P24 -> 6622512.661 | J50: =L50 -> 6620975.728 | L50: ='7. Cost_of_Capital'!P41 -> 6620975.728 | N50: =P50 -> 6622571.322 | P50: ='7. Cost_of_Capital'!P58 -> 6622571.322 | R50: =T50 -> 6622466.736 | T50: ='7. Cost_of_Capital'!P75 -> 6622466.736
B51: 25 | D51: Revenue Deficiency/(Sufficiency) | F51: =F50-F36 -> 6670155.983 | H51: =H38*H48 -> 0 | J51: =J50-J36 -> 6802001.711 | L51: =L38*L48 -> 0 | N51: =N50-N36 -> 6290640.735 | P51: =P38*P48 -> 0 | R51: =R50-R36 -> 2811278.229 | T51: =T38*T48 -> 0
B52: 26 | D52: Gross Revenue Deficiency/(Sufficiency) | F52: =IF(F31>0,F51/(1-F33),F51) -> 6670155.983 | G52: (1) | J52: =IF(J31>0,J51/(1-J33),J51) -> 6802001.711 | K52: (1) | N52: =IF(N31>0,N51/(1-N33),N51) -> 6290640.735 | O52: (1) | R52: =IF(R31>0,R51/(1-R33),R51) -> 2811278.229 | S52: (1)
B55: Notes:
B56: (1) | D56: Revenue Deficiency/Sufficiency divided by (1 - Tax Rate)
D57: Gross Revenue Deficiency/(Sufficiency) formula adjusted for negative taxable income

Sheet 9. Rev_Reqt
B11: Revenue Requirement
B13: Line No. | D13: Particulars | F13: Application | J13: =IF(ISBLANK('3. Data_Input_Sheet'!M12),"",'3. Data_Input_Sheet'!M12) -> Interrogatory Responses | N13: =IF(ISBLANK('3. Data_Input_Sheet'!U12),"",'3. Data_Input_Sheet'!U12) -> Settlement Agreement | R13: ='3. Data_Input_Sheet'!AC12 -> Per Board Decision
B15: 1 | D15: OM&A Expenses | F15: ='5. Utility Income'!F22 -> 22271990.05 | J15: ='5. Utility Income'!N22 -> 22271990.05 | N15: ='5. Utility Income'!V22 -> 22271990.05 | R15: ='5. Utility Income'!AD22 -> 19500000
B16: 2 | D16: Amortization/Depreciation | F16: ='5. Utility Income'!F23 -> 9467348.33 | J16: ='5. Utility Income'!N23 -> 9467348.33 | N16: ='5. Utility Income'!V23 -> 9467348.33 | R16: ='5. Utility Income'!AD23 -> 8910549.52
B17: 3 | D17: Property Taxes | F17: ='5. Utility Income'!F24 -> 164561.64 | J17: ='5. Utility Income'!N24 -> 164561.64 | N17: ='5. Utility Income'!V24 -> 164561.64 | R17: ='5. Utility Income'!AD24 -> 164561.64
B18: 4 | D18: Capital Taxes | F18: ='6. Taxes_PILs'!G25 -> 0 | J18: ='6. Taxes_PILs'!K25 -> 0 | N18: ='6. Taxes_PILs'!O25 -> 0 | R18: ='6. Taxes_PILs'!S25 -> 0
B19: 5 | D19: Income Taxes (Grossed up) | F19: ='6. Taxes_PILs'!G33 -> 0 | J19: ='6. Taxes_PILs'!K33 -> 0 | N19: ='6. Taxes_PILs'!O33 -> 0 | R19: ='6. Taxes_PILs'!S33 -> 0
B20: 6 | D20: Other Expenses | F20: ='5. Utility Income'!F26 -> 0 | J20: ='5. Utility Income'!N26 -> 0 | N20: ='5. Utility Income'!V26 -> 0 | R20: ='5. Utility Income'!AD26 -> 0
B21: 7 | D21: Return
D22: Deemed Interest Expense | F22: ='8. Rev_Def_Suff'!F25 -> 3800586.433 | J22: ='8. Rev_Def_Suff'!L25 -> 3799704.404 | N22: ='8. Rev_Def_Suff'!P25 -> 3800620.098 | R22: ='8. Rev_Def_Suff'!T25 -> 3668163.244
D23: Return on Deemed Equity | F23: ='8. Rev_Def_Suff'!F50 -> 6622512.661 | J23: ='8. Rev_Def_Suff'!L50 -> 6620975.728 | N23: ='8. Rev_Def_Suff'!P50 -> 6622571.322 | R23: ='8. Rev_Def_Suff'!T50 -> 6622466.736
B25: 8 | D25: Service Revenue Requirement (before Revenues) | F25: =SUM(F15:F23) -> 42326999.11 | J25: =SUM(J15:J23) -> 42324580.15 | N25: =SUM(N15:N23) -> 42327091.44 | R25: =SUM(R15:R23) -> 38865741.14
B27: 9 | D27: Revenue Offsets | F27: ='3. Data_Input_Sheet'!E33 -> 3478106.86 | J27: ='3. Data_Input_Sheet'!M33 -> 3478466.355 | N27: ='3. Data_Input_Sheet'!U33 -> 3827274.355 | R27: ='3. Data_Input_Sheet'!AC33 -> 3827274.355
B28: 10 | D28: Base Revenue Requirement | F28: =F25-F27 -> 38848892.25 | J28: =J25-J27 -> 38846113.8 | N28: =N25-N27 -> 38499817.09 | R28: =R25-R27 -> 35038466.79
D29: (excluding Tranformer Owership Allowance credit adjustment)
B31: 11 | D31: Distribution revenue | F31: ='5. Utility Income'!F16 -> 38848892.25 | J31: ='5. Utility Income'!N16 -> 38846113.8 | N31: ='5. Utility Income'!V16 -> 38499817.09 | R31: ='5. Utility Income'!AD16 -> 35038466.79
B32: 12 | D32: Other revenue | F32: ='5. Utility Income'!F17 -> 3478106.86 | J32: ='5. Utility Income'!N17 -> 3478466.355 | N32: ='5. Utility Income'!V17 -> 3827274.355 | R32: ='5. Utility Income'!AD17 -> 3827274.355
B34: 13 | D34: Total revenue | F34: =SUM(F31:F32) -> 42326999.11 | J34: =SUM(J31:J32) -> 42324580.15 | N34: =SUM(N31:N32) -> 42327091.44 | R34: =SUM(R31:R32) -> 38865741.14
B36: 14 | D36: Difference (Total Revenue Less Distribution Revenue Requirement before Revenues) | F36: =F34-F25 -> 0 | H36: (1) | J36: =J34-J25 -> 0 | L36: (1) | N36: =N34-N25 -> 0 | P36: (1) | R36: =R34-R25 -> 0 | T36: (1)
D39: Summary Table of Revenue Requirement and Revenue Deficiency/Sufficiency
F41: =F13 -> Application | J41: =J13 -> Interrogatory Responses | L41: Δ% (2) | N41: =N13 -> Settlement Agreement | P41: Δ% (2) | R41: =R13 -> Per Board Decision | T41: Δ% (2)
D42: Service Revenue Requirement | F42: =F25 -> 42326999.11 | J42: =J25 -> 42324580.15 | L42: =IF($F42=0," ",(J42-$F42)/$F42) -> -5.714938355e-05 | N42: =N25 -> 42327091.44 | P42: =IF($F42=0," ",(N42-$F42)/$F42) -> 2.181277655e-06 | R42: =R25 -> 38865741.14 | T42: =IF($F42=0," ",(R42-$F42)/$F42) -> -0.08177423501
D43: Grossed-Up Revenue Deficiency/(Sufficiency) | F43: ='8. Rev_Def_Suff'!F52 -> 6670155.983 | J43: ='8. Rev_Def_Suff'!J52 -> 6802001.711 | L43: =IF($F43=0," ",(J43-$F43)/$F43) -> 0.01976651335 | N43: ='8. Rev_Def_Suff'!N52 -> 6290640.735 | P43: =IF($F43=0," ",(N43-$F43)/$F43) -> -0.05689750721 | R43: ='8. Rev_Def_Suff'!R52 -> 2811278.229 | T43: =IF($F43=0," ",(R43-$F43)/$F43) -> -0.5785288625
D45: Base Revenue Requirement (to be recovered from Distribution Rates) | F45: =F28 -> 38848892.25 | J45: =J28 -> 38846113.8 | L45: =IF($F45=0," ",(J45-$F45)/$F45) -> -7.151959157e-05 | N45: =N28 -> 38499817.09 | P45: =IF($F45=0," ",(N45-$F45)/$F45) -> -0.008985460017 | R45: =R28 -> 35038466.79 | T45: =IF($F45=0," ",(R45-$F45)/$F45) -> -0.09808324631
D46: Revenue Deficiency/(Sufficiency) Associated with Base Revenue Requirement | F46: ='3. Data_Input_Sheet'!E26-'3. Data_Input_Sheet'!E25 -> 6670155.983 | J46: ='3. Data_Input_Sheet'!M26-'3. Data_Input_Sheet'!M25 -> 6802001.711 | L46: =IF($F46=0," ",(J46-$F46)/$F46) -> 0.01976651335 | N46: ='3. Data_Input_Sheet'!U26-'3. Data_Input_Sheet'!U25 -> 6290640.735 | P46: =IF($F46=0," ",(N46-$F46)/$F46) -> -0.05689750721 | R46: ='3. Data_Input_Sheet'!AC26-'3. Data_Input_Sheet'!AC25 -> 2811278.229 | T46: =IF($F46=0," ",(R46-$F46)/$F46) -> -0.5785288625
B49: Notes
B50: (1) | D50: Line 11 - Line 8
B51: (2) | D51: Percentage Change Relative to Initial Application

Sheet Hidden Data_Rev Reqt (hidden)
A1: Utility Name | B1: EB Number | C1: Test Year | D1: Bridge Year | E1: Last Rebasing Year | F1: Data Elements | G1: Intital Application | H1: Per Board Decision
A2: ='1. Info'!$G$16 -> Oshawa PUC Networks Inc. | B2: ='1. Info'!$G$20 -> EB-2025-0014 | C2: ='1. Info'!$G$28 -> 2026 | D2: ='1. Info'!$G$30 -> 2025 | E2: ='1. Info'!$G$32 -> 2021 | F2: Service Revenue Requirement (before Revenues) | G2: ='9. Rev_Reqt'!F25 -> 42326999.11 | H2: ='9. Rev_Reqt'!N25 -> 42327091.44
A3: ='1. Info'!$G$16 -> Oshawa PUC Networks Inc. | B3: ='1. Info'!$G$20 -> EB-2025-0014 | C3: ='1. Info'!$G$28 -> 2026 | D3: ='1. Info'!$G$30 -> 2025 | E3: ='1. Info'!$G$32 -> 2021 | F3: Base Revenue Requirement | G3: ='9. Rev_Reqt'!F28 -> 38848892.25 | H3: ='9. Rev_Reqt'!N28 -> 38499817.09
A4: ='1. Info'!$G$16 -> Oshawa PUC Networks Inc. | B4: ='1. Info'!$G$20 -> EB-2025-0014 | C4: ='1. Info'!$G$28 -> 2026 | D4: ='1. Info'!$G$30 -> 2025 | E4: ='1. Info'!$G$32 -> 2021 | F4: Revenue Deficiency/(Sufficiency) Associated with Base Revenue Requirement | G4: ='9. Rev_Reqt'!F46 -> 6670155.983 | H4: ='9. Rev_Reqt'!N46 -> 6290640.735

Sheet 10. Load Forecast
B14: Load Forecast Summary
B16: This spreadsheet provides a summary of the customer and load forecast on which the test year revenue requirement is derived. The amounts serve as the denominators for deriving the rates to recover the test year revenue requirement for purposes of this RRWF.
B18: The information to be input is inclusive of any adjustments to kWh and kW to reflect the impacts of CDM programs up to and including CDM programs planned to be executed in the test year. i.e., the load forecast adjustments determined in Appendix 2-IB should be incorporated into the entries. The inputs should correspond with the summary of the Load Forecast for the Test Year in Appendix 2-IB and in Exhibit 3 of the application.
B20: Appendix 2-IB is still required to be filled out, as it also provides a year-over-year variance analysis of demand growth and trends from historical actuals to the Bridge and Test Year forecasts.
D22: Stage in Process: | F22: Per Board Decision
D24: Customer Class | F24: =IF(ISBLANK('3. Data_Input_Sheet'!E12)," ",'3. Data_Input_Sheet'!E12) -> Initial Application | L24: =IF(ISBLANK('3. Data_Input_Sheet'!M12)," ",'3. Data_Input_Sheet'!M12) -> Interrogatory Responses | R24: =IF(ISBLANK('3. Data_Input_Sheet'!U12)," ",'3. Data_Input_Sheet'!U12) -> Settlement Agreement | X24: =IF(ISBLANK('3. Data_Input_Sheet'!AC12)," ",'3. Data_Input_Sheet'!AC12) -> Per Board Decision
D26: Input the name of each customer class. | F26: Customer / Connections | H26: kWh | J26: kW/kVA (1) | L26: =F26 -> Customer / Connections | N26: =H26 -> kWh | P26: kW/kVA (1) | R26: =F26 -> Customer / Connections | T26: =H26 -> kWh | V26: kW/kVA (1) | X26: =L26 -> Customer / Connections | Z26: =N26 -> kWh | AB26: kW/kVA (1)
F27: Test Year average or mid-year | H27: Annual | J27: Annual | L27: =F27 -> Test Year average or mid-year | N27: =H27 -> Annual | P27: =J27 -> Annual | R27: =F27 -> Test Year average or mid-year | T27: =H27 -> Annual | V27: =J27 -> Annual | X27: =L27 -> Test Year average or mid-year | Z27: =N27 -> Annual | AB27: =P27 -> Annual
B29: 1 | D29: Residential | F29: 59515.25117 | H29: 551504306.3 | L29: 59177.3944 | N29: 550241794.1 | R29: 59464.48552 | T29: 550418822.7 | X29: 59464.48552 | Z29: 550418822.7
B30: 2 | D30: GS < 50 | F30: 4523.211904 | H30: 128276139 | L30: 4371.644333 | N30: 125682650.1 | R30: 4545.116429 | T30: 130408181 | X30: 4545.116429 | Z30: 130408181
B31: 3 | D31: GS 50-999 | F31: 518.3294286 | H31: 326060503.7 | J31: 826398.1419 | L31: 515.4471775 | N31: 332076482.1 | P31: 841467.4978 | R31: 529.6274215 | T31: 332202871.7 | V31: 841788.5623 | X31: 529.6274215 | Z31: 332202871.7 | AB31: 841788.5623
B32: 4 | D32: GS 1,000-4,999 | F32: 18.20221477 | H32: 74664594.96 | J32: 178387.6625 | L32: 17.67902756 | N32: 74407628.45 | P32: 178737.5778 | R32: 12 | T32: 74397149.69 | V32: 178712.6579 | X32: 12 | Z32: 76973947.59 | AB32: 184902.4972
B33: 5 | D33: Large Use | F33: 1 | H33: 34931299.54 | J33: 77831.62546 | L33: 1 | N33: 34949625.75 | P33: 77914.53402 | R33: 1 | T33: 34965500.47 | V33: 77949.85195 | X33: 1 | Z33: 35440677.99 | AB33: 79009.18233
B34: 6 | D34: Street Light | F34: 14844.83917 | H34: 4665081.979 | J34: 13198.01356 | L34: 14728.06769 | N34: 4595142.231 | P34: 13027.99851 | R34: 14754.65051 | T34: 4602782.664 | V34: 13049.66042 | X34: 14754.65051 | Z34: 4602782.664 | AB34: 13049.66042
B35: 7 | D35: Sentinel Lights | F35: 19 | H35: 26717.92 | J35: 79.10681669 | L35: 19 | N35: 25474.4 | P35: 77.82188858 | R35: 19 | T35: 25474.4 | V35: 77.82188858 | X35: 19 | Z35: 25474.4 | AB35: 77.82188858
B36: 8 | D36: USL | F36: 262.9224333 | H36: 2866800.061 | L36: 265.5699619 | N36: 2898787.772 | R36: 296.0984826 | T36: 2874356.529 | X36: 296.0984826 | Z36: 2874356.529
B37: 9
B38: 10
B39: 11
B40: 12
B41: 13
B42: 14
B43: 15
B44: 16
B45: 17
B46: 18
B47: 19
B48: 20
D50: Total | F50: =SUM(F29:F48) -> 79702.75633 | H50: =SUM(H29:H48) -> 1122995443 | J50: =SUM(J29:J48) -> 1095894.55 | L50: =SUM(L29:L48) -> 79095.80259 | N50: =SUM(N29:N48) -> 1124877585 | P50: =SUM(P29:P48) -> 1111225.43 | R50: =SUM(R29:R48) -> 79621.97837 | T50: =SUM(T29:T48) -> 1129895139 | V50: =SUM(V29:V48) -> 1111578.554 | X50: =SUM(X29:X48) -> 79621.97837 | Z50: =SUM(Z29:Z48) -> 1132947115 | AB50: =SUM(AB29:AB48) -> 1118827.724
B52: Notes:
B54: (1) | C54: Input kW or kVA for those customer classes for which billing is based on demand (kW or kVA) versus energy consumption (kWh)

Sheet 11. Cost_Allocation
B14: Cost Allocation and Rate Design
B16: This spreadsheet replaces Appendix 2-P and provides a summary of the results from the Cost Allocation spreadsheet, and is used in the determination of the class revenue requirement and, hence, ultimately, the determination of rates from customers in all classes to recover the revenue requirement.
C20: Stage in Application Process: | E20: =IF(ISBLANK('10. Load Forecast'!F22),"",'10. Load Forecast'!F22) -> Per Board Decision
B22: A) | C22: Allocated Costs
C24: Name of Customer Class (3) | E24: Costs Allocated from Previous Study (1) | G24: % | I24: Allocated Class Revenue Requirement (1) | K24: %
C25: From Sheet 10. Load Forecast
I26: (7A)
B28: 1 | C28: =IF(ISBLANK('10. Load Forecast'!D29),"",'10. Load Forecast'!D29) -> Residential | E28: 18746577.29 | G28: =IF(E$49=0,"",E28/E$49) -> 0.6706820555 | I28: 26537357.55 | K28: =IF(I$49=0,"",I28/I$49) -> 0.6827956062
B29: 2 | C29: =IF(ISBLANK('10. Load Forecast'!D30),"",'10. Load Forecast'!D30) -> GS < 50 | E29: 3049685.955 | G29: =IF(E$49=0,"",E29/E$49) -> 0.1091062978 | I29: 4040195.37 | K29: =IF(I$49=0,"",I29/I$49) -> 0.1039526125
B30: 3 | C30: =IF(ISBLANK('10. Load Forecast'!D31),"",'10. Load Forecast'!D31) -> GS 50-999 | E30: 4783604.679 | G30: =IF(E$49=0,"",E30/E$49) -> 0.1711393909 | I30: 6211864.24 | K30: 0.1598287848
B31: 4 | C31: =IF(ISBLANK('10. Load Forecast'!D32),"",'10. Load Forecast'!D32) -> GS 1,000-4,999 | E31: 549407.9621 | G31: =IF(E$49=0,"",E31/E$49) -> 0.01965575132 | I31: 883171.43 | K31: 0.02272364801
B32: 5 | C32: =IF(ISBLANK('10. Load Forecast'!D33),"",'10. Load Forecast'!D33) -> Large Use | E32: 263648.3603 | G32: 0.009432347115 | I32: 345062.01 | K32: 0.008878307641
B33: 6 | C33: =IF(ISBLANK('10. Load Forecast'!D34),"",'10. Load Forecast'!D34) -> Street Light | E33: 480661.7064 | G33: 0.01719626875 | I33: 773411.65 | K33: 0.01989957272
B34: 7 | C34: =IF(ISBLANK('10. Load Forecast'!D35),"",'10. Load Forecast'!D35) -> Sentinel Lights | E34: 1952.321657 | G34: 6.98467289e-05 | I34: 3164.31 | K34: 8.141643194e-05
B35: 8 | C35: =IF(ISBLANK('10. Load Forecast'!D36),"",'10. Load Forecast'!D36) -> USL | E35: 75973.37948 | G35: 0.002718041887 | I35: 71514.97 | K35: 0.001840051603
B36: 9 | C36: =IF(ISBLANK('10. Load Forecast'!D37),"",'10. Load Forecast'!D37) ->  | G36: 0 | K36: 0
B37: 10 | C37: =IF(ISBLANK('10. Load Forecast'!D38),"",'10. Load Forecast'!D38) ->  | G37: 0 | K37: 0
B38: 11 | C38: =IF(ISBLANK('10. Load Forecast'!D39),"",'10. Load Forecast'!D39) ->  | G38: 0 | K38: 0
B39: 12 | C39: =IF(ISBLANK('10. Load Forecast'!D40),"",'10. Load Forecast'!D40) ->  | G39: 0 | K39: 0
B40: 13 | C40: =IF(ISBLANK('10. Load Forecast'!D41),"",'10. Load Forecast'!D41) ->  | G40: 0 | K40: 0
B41: 14 | C41: =IF(ISBLANK('10. Load Forecast'!D42),"",'10. Load Forecast'!D42) ->  | G41: 0 | K41: 0
B42: 15 | C42: =IF(ISBLANK('10. Load Forecast'!D43),"",'10. Load Forecast'!D43) ->  | G42: 0 | K42: 0
B43: 16 | C43: =IF(ISBLANK('10. Load Forecast'!D44),"",'10. Load Forecast'!D44) ->  | G43: 0 | K43: 0
B44: 17 | C44: =IF(ISBLANK('10. Load Forecast'!D45),"",'10. Load Forecast'!D45) ->  | G44: 0 | K44: 0
B45: 18 | C45: =IF(ISBLANK('10. Load Forecast'!D46),"",'10. Load Forecast'!D46) ->  | G45: 0 | K45: 0
B46: 19 | C46: =IF(ISBLANK('10. Load Forecast'!D47),"",'10. Load Forecast'!D47) ->  | G46: 0 | K46: 0
B47: 20 | C47: =IF(ISBLANK('10. Load Forecast'!D48),"",'10. Load Forecast'!D48) ->  | G47: 0 | K47: 0
K48: 0
C49: Total | E49: =SUM(E28:E47) -> 27951511.65 | G49: =SUM(G28:G47) -> 1 | I49: =SUM(I28:I48) -> 38865741.53 | K49: =SUM(K28:K48) -> 1
C51: =IF(I51=0,"",IF(ABS(I51-I49)<(0.001*I51)," ","Allocated Revenue Requirement does not match Base Revenue Requirement from Sheet 9. Check data.")) ->  | E51: Service Revenue Requirement (from Sheet 9) | I51: ='9. Rev_Reqt'!R25 -> 38865741.14
B53: (1) | C53: Class Allocated Revenue Requirement, from Sheet O-1, Revenue to Cost || RR, row 40, from the Cost Allocation Study in this application. This excludes costs in deferral and variance accounts. For Embedded Distributors, Account 4750 - Low Voltage (LV) Costs are also excluded.
B54: (2) | C54: Host Distributors - Provide information on any embedded distributor(s) as a separate class, if applicable. If embedded distributors are billed in a General Service class, include the allocated costs and revenues of the embedded distributor(s) in the applicable class, and also complete Appendix 2-Q.
B55: (3) | C55: Customer Classes - If these differ from those in place in the previous cost allocation study, modify the customer classes to match the proposal in the current application as closely as possible.
B57: B) | C57: Calculated Class Revenues
C59: Name of Customer Class | E59: Load Forecast (LF) X current approved rates | G59: LF X current approved rates X (1+d) | I59: LF X Proposed Rates | K59: Miscellaneous Revenues
E60: (7B) | G60: (7C) | I60: (7D) | K60: (7E)
B62: 1 | C62: =IF(ISBLANK(C28),"",C28) -> Residential | E62: 21257364.28 | G62: 23111710.76 | I62: 23111710.76 | K62: 2833138.06
B63: 2 | C63: =IF(ISBLANK(C29),"",C29) -> GS < 50 | E63: 3879528.711 | G63: 4217952.15 | I63: 4217952.15 | K63: 382241.22
B64: 3 | C64: GS 50-999 | E64: 5393513.6 | G64: 5864006.69 | I64: 5864006.69 | K64: 441464.63
B65: 4 | C65: GS 1,000-4,999 | E65: 675925.7395 | G65: 734888.86 | I65: 762167.7 | K65: 53484.44
B66: 5 | C66: Large Use | E66: 295914.3233 | G66: 321727.86 | I66: 321727.86 | K66: 24619.32
B67: 6 | C67: Street Light | E67: 629526.134 | G67: 684441.67 | I67: 684441.67 | K67: 80046.66
B68: 7 | C68: Sentinel Lights | E68: 2312.00355 | G68: 2513.69 | I68: 2569.29 | K68: 353.1
B69: 8 | C69: USL | E69: 93103.75923 | G69: 101225.49 | I69: 73891 | K69: 11926.93
B70: 9
B71: 10
B72: 11
B73: 12
B74: 13
B75: 14
B76: 15
B77: 16
B78: 17
B79: 18
B80: 19
B81: 20
C83: Total | E83: =SUM(E62:E81) -> 32227188.56 | G83: =SUM(G62:G81) -> 35038467.17 | I83: =SUM(I62:I81) -> 35038467.12 | K83: =SUM(K62:K81) -> 3827274.36
B86: (4) | C86: In columns 7B to 7D, LF means Load Forecast of Annual Billing Quantities (i.e., customers or connections, as applicable X 12 months, and kWh, kW or kVA as applicable. Revenue quantities should be net of the Transformer Ownership Allowance for applicable customer classes. Exclude revenues from rate adders and rate riders.
B87: (5) | C87: Columns 7C and 7D - Column Total should equal the Base Revenue Requirement for each.
B88: (6) | C88: Column 7C - The OEB-issued cost allocation model calculates "1+d" on worksheet O-1, cell C22. "d" is defined as Revenue Deficiency/Revenue at Current Rates.
B89: (7) | C89: Column 7E - If using the OEB-issued cost allocation model, enter Miscellaneous Revenues as it appears on worksheet O-1, row 19.
B91: C) | C91: Rebalancing Revenue-to-Cost Ratios
C93: Name of Customer Class | E93: Previously Approved Ratios | G93: Status Quo Ratios | I93: Proposed Ratios | K93: Policy Range
E94: Most Recent Year: | G94: (7C + 7E) / (7A) | I94: (7D + 7E) / (7A)
E95: 2021
E96: % | G96: % | I96: % | K96: %
B98: 1 | C98: =IF(ISBLANK(C62),"",C62) -> Residential | E98: 0.9669011441 | G98: =IF(ISBLANK(I28),"",(G62+K62)/I28) -> 0.9776726553 | I98: =IF(ISBLANK(I28),"",(I62+K62)/I28) -> 0.9776726553 | K98: 85 - 115 | M98: =IF(ISBLANK(K98),"",LEFT(K98,2)/100) -> 0.85 | N98: =IF(ISBLANK(K98),"",RIGHT(K98,3)/100) -> 1.15 | O98: 85 - 115
B99: 2 | C99: GS < 50 | E99: 1.149207709 | G99: 1.138606663 | I99: 1.138606663 | K99: 80 - 120 | M99: =IF(ISBLANK(K99),"",LEFT(K99,2)/100) -> 0.8 | N99: =IF(ISBLANK(K99),"",RIGHT(K99,3)/100) -> 1.2 | O99: 80 - 120
B100: 3 | C100: GS 50-999 | E100: 1.037595254 | G100: 1.01506908 | I100: 1.01506908 | K100: 80 - 120 | M100: 0.8 | N100: 1.2
B101: 4 | C101: GS 1,000-4,999 | E101: 1.065847949 | G101: 0.8926616886 | I101: 0.9235490555 | K101: 80 - 120 | M101: 0.8 | N101: 1.2
B102: 5 | C102: Large Use | E102: 1.053618912 | G102: 1.003724461 | I102: 1.003724461 | K102: 85 - 115 | M102: 0.85 | N102: 1.15
B103: 6 | C103: Street Light | E103: 0.9909296247 | G103: 0.9884623926 | I103: 0.9884623926 | K103: 80 - 120 | M103: 0.8 | N103: 1.2
B104: 7 | C104: Sentinel Lights | E104: 0.9669011441 | G104: 0.9059763424 | I104: 0.9235473136 | K104: 80 - 120 | M104: 0.8 | N104: 1.2
B105: 8 | C105: USL | E105: 1.2 | G105: 1.582220058 | I105: 1.199999525 | K105: 80 - 120 | M105: 0.8 | N105: 1.2
B106: 9
B107: 10
B108: 11
B109: 12
B110: 13
B111: 14
B112: 15
B113: 16
B114: 17
B115: 18
B116: 19
B117: 20
B120: (8) | C120: Previously Approved Revenue-to-Cost (R/C) Ratios - For most applicants, the most recent year would be the third year (at the latest) of the Price Cap IR period. For example, if the applicant, rebased in 2020 with further adjustments to move within the range over two years, the Most Recent Year would be 2023. However, the ratios in 2023 would be equal to those after the adjustment in 2022.
B121: (9) | C121: Status Quo Ratios - The OEB-issued cost allocation model provides the Status Quo Ratios on Worksheet O-1. The Status Quo means "Before Rebalancing".
B122: (10) | C122: Ratios shown in red are outside of the allowed range. Applies to both Tables C and D.
B124: (D) | C124: Proposed Revenue-to-Cost Ratios (11)
C126: Name of Customer Class | E126: Proposed Revenue-to-Cost Ratio | K126: Policy Range
E127: Test Year | G127: Price Cap IR Period
E128: ='1. Info'!G28 -> 2026 | G128: =E128+1 -> 2027 | I128: =G128+1 -> 2028
B130: 1 | C130: =IF(ISBLANK(C98),"",C98) -> Residential | E130: =I98 -> 0.9776726553 | G130: =IF(E130=0,"",E130) -> 0.9776726553 | I130: =IF(G130=0,"",G130) -> 0.9776726553 | K130: =IF(ISBLANK(K98),"",K98) -> 85 - 115 | M130: =IF(K130="","",LEFT(K130,2)/100) -> 0.85 | N130: =IF(K130="","",RIGHT(K130,3)/100) -> 1.15
B131: 2 | C131: =IF(ISBLANK(C99),"",C99) -> GS < 50 | E131: =I99 -> 1.138606663 | G131: =IF(E131=0,"",E131) -> 1.138606663 | I131: =IF(G131=0,"",G131) -> 1.138606663 | K131: =IF(ISBLANK(K99),"",K99) -> 80 - 120 | M131: =IF(K131="","",LEFT(K131,2)/100) -> 0.8 | N131: =IF(K131="","",RIGHT(K131,3)/100) -> 1.2
B132: 3 | C132: GS 50-999 | E132: 1.01506908 | G132: 1.01506908 | I132: 1.01506908 | K132: 80 - 120 | M132: 0.8 | N132: 1.2
B133: 4 | C133: GS 1,000-4,999 | E133: 0.9235490555 | G133: 0.9235490555 | I133: 0.9235490555 | K133: 80 - 120 | M133: 0.8 | N133: 1.2
B134: 5 | C134: Large Use | E134: 1.003724461 | G134: 1.003724461 | I134: 1.003724461 | K134: 85 - 115 | M134: 0.85 | N134: 1.15
B135: 6 | C135: Street Light | E135: 0.9884623926 | G135: 0.9884623926 | I135: 0.9884623926 | K135: 80 - 120 | M135: 0.8 | N135: 1.2
B136: 7 | C136: Sentinel Lights | E136: 0.9235473136 | G136: 0.9235473136 | I136: 0.9235473136 | K136: 80 - 120 | M136: 0.8 | N136: 1.2
B137: 8 | C137: USL | E137: 1.199999525 | G137: 1.199999525 | I137: 1.199999525 | K137: 80 - 120 | M137: 0.8 | N137: 1.2
B138: 9
B139: 10
B140: 11
B141: 12
B142: 13
B143: 14
B144: 15
B145: 16
B146: 17
B147: 18
B148: 19
B149: 20
B152: (11) | C152: The applicant should complete Table D if it is applying for approval of a revenue-to-cost ratio in 2026 that is outside of the OEB's policy range for any customer class. Table D will show that the distributor is likely to enter into the 2027 and 2028 Price Cap IR models, as necessary. For 2027 and 2028, enter the planned revenue-to-cost ratios that will be "Change" or "No Change" in 2027 (in the current Revenue/Cost Ratio Adjustment Workform, Worksheet C1.1 'Decision - Cost Revenue Adjustment, column d), and enter TBD for class(es) that will be entered as 'Rebalance'.

Sheet 12. Res_Rate_Design (hidden)
B14: New Rate Design Policy For Residential Customers
B16: Please complete the following tables.
B18: A | C18: Data Inputs (from Sheet 10. Load Forecast)
C20: Test Year Billing Determinants for Residential Class
C21: Customers | D21: =VLOOKUP("Residential",'13. Rate Design'!D28:L47,5,FALSE) -> 59464.48552
C22: kWh | D22: =VLOOKUP("Residential",'13. Rate Design'!D28:L47,7,FALSE) -> 550418822.7
C24: Proposed Residential Class Specific Revenue Requirement1 | D24: =VLOOKUP("Residential",'11. Cost_Allocation'!C62:K81,7,FALSE) -> 23111710.76
C26: Residential Base Rates on Current Tariff
C27: Monthly Fixed Charge ($)
C28: Distribution Volumetric Rate ($/kWh)
B31: B | C31: Current Fixed/Variable Split
D33: Base Rates | E33: Billing Determinants | F33: Revenue | G33: % of Total Revenue
C34: Fixed | D34: =IF(D27="","",D27) ->  | E34: =IF(D21="","",D21) -> 59464.48552 | F34: =IF(ISERROR(D34*E34*12),"",D34*E34*12) ->  | G34: =IF(ISERROR(F34/F36),"",F34/F36) -> 
C35: Variable | D35: =IF(D28="","",D28) ->  | E35: =IF(D22="","",D22) -> 550418822.7 | F35: =IF(ISERROR(D35*E35),"",D35*E35) ->  | G35: =IF(ISERROR(F35/F36),"",F35/F36) -> 
C36: TOTAL | D36: - | E36: - | F36: =IF(ISERROR(F34+F35),"",F34+F35) ->  | G36: -
B38: C | C38: Calculating Test Year Base Rates
C40: Number of Remaining Rate Design Policy Transition Years2
D42: Test Year Revenue @ Current F/V Split | E42: Test Year Base Rates @ Current F/V Split | F42: Reconciliation - Test Year Base Rates @ Current F/V Split
C43: Fixed | D43: =IF(ISERROR(D$24*G34),"",D$24*G34) ->  | E43: =IF(ISERROR(ROUND(D43/D21/12,2)),"",ROUND(D43/D21/12,2)) ->  | F43: =IF(ISERROR(E43*D21*12),"",E43*D21*12) -> 
C44: Variable | D44: =IF(ISERROR(D$24*G35),"",D$24*G35) ->  | E44: =IF(ISERROR(ROUND(D44/D22,4)),"",ROUND(D44/D22,4)) ->  | F44: =IF(ISERROR(E44*D22),"",E44*D22) -> 
C45: TOTAL | D45: =IF(ISERROR(D43+D44),"",D43+D44) ->  | E45: - | F45: =IF(ISERROR(F43+F44),"",F43+F44) -> 
D47: New F/V Split | E47: Revenue @ new F/V Split | F47: Final Adjusted Base Rates | G47: Revenue Reconciliation @ Adjusted Rates
C48: Fixed | D48: =IF(ISERROR(((1-G34)/D40)+G34),"",((1-G34)/D40)+G34) ->  | E48: =IF(ISERROR(D48*D$24),"",D48*D$24) ->  | F48: =IF(ISERROR(ROUND(E48/D21/12,2)),"",ROUND(E48/D21/12,2)) ->  | G48: =IF(ISERROR(F48*12*D21),"",F48*12*D21) -> 
C49: Variable | D49: =IF(ISERROR(1-D48),"",1-D48) ->  | E49: =IF(ISERROR(D49*D$24),"",D49*D$24) ->  | F49: =IF(ISERROR(ROUND(E49/D22,4)),"",ROUND(E49/D22,4)) ->  | G49: =IF(ISERROR(F49*D22),"",F49*D22) -> 
C50: TOTAL | D50: - | E50: =IF(ISERROR(SUM(E48:E49)),"",SUM(E48:E49)) -> 0 | F50: - | G50: =IF(ISERROR(G48+G49),"",G48+G49) -> 
C52: Checks3
C53: Change in Fixed Rate | D53: =IF(ISERROR(F48-E43),"",F48-E43) -> 
C54: Difference Between Revenues @ Proposed Rates and Class Specific Revenue Requirement | D54: =IF(ISERROR((F48*12*D21)+(F49*D22)-D24),"",(F48*12*D21)+(F49*D22)-D24) -> 
D55: =IF(ISERROR(D54/D24), "", D54/D24) -> 
B57: Notes:
B59: 1 | C59: The final residential class specific revenue requirement, excluding allocated Miscellaneous Revenues, as shown on Sheet 11. Cost Allocation, should be used (i.e. the revenue requirement after any proposed adjustments to R/C ratios).
B62: 2 | C62: The distributor should enter the number of years remaining before the transition to fully fixed rates is completed. The change in residential rate design is almost complete and distributors should have either 0 or 1 year remaining. If the distributor has fully transitioned to fixed rates put "0" in cell D40. If the distributor has proposed an additional transition year because the change in the residential rate design will result in the fixed charge increasing by more than $4/year, put "1" in cell D40.
B67: 3 | C67: Change in fixed rate due to rate design policy should be less than $4. The difference between the proposed class revenue requirement and the revenue at calculated base rates should be minimal (i.e. should be reasonably considered as a rounding error)

Sheet 13. Rate Design
AC4: ='3. Data_Input_Sheet'!E12 -> Initial Application | AD4: 1 | AE4: F | AF4: H | AG4: J
AC5: =IF(ISBLANK('3. Data_Input_Sheet'!M12)," ",'3. Data_Input_Sheet'!M12) -> Interrogatory Responses | AD5: 2 | AE5: L | AF5: N | AG5: P
AC6: =IF(ISBLANK('3. Data_Input_Sheet'!U12)," ",'3. Data_Input_Sheet'!U12) -> Settlement Agreement | AD6: 3 | AE6: R | AF6: T | AG6: V
AC7: ='3. Data_Input_Sheet'!AC12 -> Per Board Decision
B15: Rate Design and Revenue Reconciliation
B17: This sheet replaces Appendix 2-V, and provides a simplified model for calculating the standard monthly and voluemtric rates based on the allocated class revenues and fixed/variable split resulting from the cost allocation study and rate design and as proposed by the applicant. However, the RRWF does not replace the rate generator model that an applicant distributor may use in support of its application. The RRWF provides a demonstrative check on the derivation of the revenue requirement and on the proposed base distribution rates to recover the revenue requirement, based on summary information from a more detailed rate generator model and other models that applicants use for cost allocation, load forecasting, taxes/PILs, etc.
D20: Stage in Process: | H20: =IF(ISBLANK('10. Load Forecast'!F22),"",'10. Load Forecast'!F22) -> Per Board Decision | O20: Class Allocated Revenues | AA20: Distribution Rates | AK20: Revenue Reconciliation
D22: Customer and Load Forecast | O22: From Sheet 11. Cost Allocation and Sheet 12. Residential Rate Design | U22: Fixed / Variable Splits 2,3
U23: Percentage to be entered as a fraction between 0 and 1
D24: Customer Class | F24: Volumetric Charge Determinant | H24: Customers / Connections | J24: kWh | L24: kW or kVA | O24: Total Class Revenue Requirement | Q24: Monthly Service Charge | S24: Volumetric | Y24: Transformer Ownership Allowance 1 ($) | AA24: Monthly Service Charge 2 | AE24: Volumetric Rate 3 | AO24: Distribution Revenues less Transformer Ownership Allowance
U25: Fixed | W25: Variable
D26: From sheet 10. Load Forecast | AA26: Rate | AC26: No. of decimals | AE26: Rate | AI26: No. of decimals | AK26: MSC Revenues | AM26: Volumetric revenues
B28: 1 | D28: =IF(ISBLANK('10. Load Forecast'!D29),"",'10. Load Forecast'!D29) -> Residential | F28: kWh | H28: =IF(ISBLANK($H$20),0,IF($H$20=$AC$4,'10. Load Forecast'!F29,IF($H$20=$AC$5,'10. Load Forecast'!L29,IF($H$20=$AC$6,'10. Load Forecast'!R29,'10. Load Forecast'!X29)))) -> 59464.48552 | J28: =IF(ISBLANK($H$20),0,IF($H$20=$AC$4,'10. Load Forecast'!H29,IF($H$20=$AC$5,'10. Load Forecast'!N29,IF($H$20=$AC$6,'10. Load Forecast'!T29,'10. Load Forecast'!Z29)))) -> 550418822.7 | L28: =IF(ISBLANK($H$20),0,IF($H$20=$AC$4,'10. Load Forecast'!J29,IF($H$20=$AC$5,'10. Load Forecast'!P29,IF($H$20=$AC$6,'10. Load Forecast'!V29,'10. Load Forecast'!AB29)))) -> 0 | O28: =IF(ISBLANK('11. Cost_Allocation'!I62),"",'11. Cost_Allocation'!I62) -> 23111710.76 | Q28: =IF(ISBLANK(U28),"",O28*U28) -> 23111710.76 | S28: =IF(Q28="","",O28-Q28) -> 0 | U28: 1 | W28: =IF(ISBLANK(U28),"",1-U28) -> 0 | AA28: =IF(O28="","",IF(H28=0,0,IF(U28=0,0,ROUND(Q28/(H28*12),AC28)))) -> 32.39 | AC28: 2 | AE28: =IF(S28="","",ROUND(IF(F28="kWh",(S28+Y28)/J28,(S28+Y28)/L28),AI28)) -> 0 | AG28: =IF(ISBLANK(F28),"",CONCATENATE("/",F28)) -> /kWh | AI28: 4 | AK28: =IF(AA28="",0,AA28*H28*12) -> 23112656.23 | AM28: =ROUND(IF(AE28="",0,IF(F28="kWh",J28*AE28,IF(F28="kW",IF(AE28="",0,AE28*L28)))),AI28) -> 0 | AO28: =ROUND(AK28+AM28-Y28,2) -> 23112656.23
B29: 2 | D29: =IF(ISBLANK('10. Load Forecast'!D30),"",'10. Load Forecast'!D30) -> GS < 50 | F29: kWh | H29: =IF(ISBLANK($H$20),0,IF($H$20=$AC$4,'10. Load Forecast'!F30,IF($H$20=$AC$5,'10. Load Forecast'!L30,IF($H$20=$AC$6,'10. Load Forecast'!R30,'10. Load Forecast'!X30)))) -> 4545.116429 | J29: =IF(ISBLANK($H$20),0,IF($H$20=$AC$4,'10. Load Forecast'!H30,IF($H$20=$AC$5,'10. Load Forecast'!N30,IF($H$20=$AC$6,'10. Load Forecast'!T30,'10. Load Forecast'!Z30)))) -> 130408181 | L29: =IF(ISBLANK($H$20),0,IF($H$20=$AC$4,'10. Load Forecast'!J30,IF($H$20=$AC$5,'10. Load Forecast'!P30,IF($H$20=$AC$6,'10. Load Forecast'!V30,'10. Load Forecast'!AB30)))) -> 0 | O29: =IF(ISBLANK('11. Cost_Allocation'!I63),"",'11. Cost_Allocation'!I63) -> 4217952.15 | Q29: =IF(ISBLANK(U29),"",O29*U29) -> 1231604.066 | S29: =IF(Q29="","",O29-Q29) -> 2986348.084 | U29: 0.291991 | W29: =IF(ISBLANK(U29),"",1-U29) -> 0.708009 | AA29: =IF(O29="","",IF(H29=0,0,IF(U29=0,0,ROUND(Q29/(H29*12),AC29)))) -> 22.58 | AC29: =AC28 -> 2 | AE29: =IF(S29="","",ROUND(IF(F29="kWh",(S29+Y29)/J29,(S29+Y29)/L29),AI29)) -> 0.0229 | AG29: /kWh | AI29: =AI28 -> 4 | AK29: =IF(AA29="",0,AA29*H29*12) -> 1231544.748 | AM29: =ROUND(IF(AE29="",0,IF(F29="kWh",J29*AE29,IF(F29="kW",IF(AE29="",0,AE29*L29)))),AI29) -> 2986347.344 | AO29: =ROUND(AK29+AM29-Y29,2) -> 4217892.09
B30: 3 | D30: =IF(ISBLANK('10. Load Forecast'!D31),"",'10. Load Forecast'!D31) -> GS 50-999 | F30: kW | H30: =IF(ISBLANK($H$20),0,IF($H$20=$AC$4,'10. Load Forecast'!F31,IF($H$20=$AC$5,'10. Load Forecast'!L31,IF($H$20=$AC$6,'10. Load Forecast'!R31,'10. Load Forecast'!X31)))) -> 529.6274215 | J30: =IF(ISBLANK($H$20),0,IF($H$20=$AC$4,'10. Load Forecast'!H31,IF($H$20=$AC$5,'10. Load Forecast'!N31,IF($H$20=$AC$6,'10. Load Forecast'!T31,'10. Load Forecast'!Z31)))) -> 332202871.7 | L30: =IF(ISBLANK($H$20),0,IF($H$20=$AC$4,'10. Load Forecast'!J31,IF($H$20=$AC$5,'10. Load Forecast'!P31,IF($H$20=$AC$6,'10. Load Forecast'!V31,'10. Load Forecast'!AB31)))) -> 841788.5623 | O30: =IF(ISBLANK('11. Cost_Allocation'!I64),"",'11. Cost_Allocation'!I64) -> 5864006.69 | Q30: 441455.0312 | S30: 5422551.659 | U30: 0.07528215 | W30: 0.92471785 | Y30: 52879.524 | AA30: 69.46 | AC30: =AC29 -> 2 | AE30: 6.5045 | AG30: /kW | AI30: =AI29 -> 4 | AK30: 441455.0484 | AM30: 5475413.703 | AO30: 5863989.23
B31: 4 | D31: =IF(ISBLANK('10. Load Forecast'!D32),"",'10. Load Forecast'!D32) -> GS 1,000-4,999 | F31: kW | H31: =IF(ISBLANK($H$20),0,IF($H$20=$AC$4,'10. Load Forecast'!F32,IF($H$20=$AC$5,'10. Load Forecast'!L32,IF($H$20=$AC$6,'10. Load Forecast'!R32,'10. Load Forecast'!X32)))) -> 12 | J31: =IF(ISBLANK($H$20),0,IF($H$20=$AC$4,'10. Load Forecast'!H32,IF($H$20=$AC$5,'10. Load Forecast'!N32,IF($H$20=$AC$6,'10. Load Forecast'!T32,'10. Load Forecast'!Z32)))) -> 76973947.59 | L31: =IF(ISBLANK($H$20),0,IF($H$20=$AC$4,'10. Load Forecast'!J32,IF($H$20=$AC$5,'10. Load Forecast'!P32,IF($H$20=$AC$6,'10. Load Forecast'!V32,'10. Load Forecast'!AB32)))) -> 184902.4972 | O31: =IF(ISBLANK('11. Cost_Allocation'!I65),"",'11. Cost_Allocation'!I65) -> 762167.7 | Q31: 204458.3984 | S31: 557709.3016 | U31: 0.26825907 | W31: 0.73174093 | Y31: 105909.1981 | AA31: 1419.85 | AC31: 2 | AE31: =IF(S31="","",ROUND(IF(F31="kWh",(S31+Y31)/J31,(S31+Y31)/L31),AI31)) -> 3.589 | AG31: /kW | AI31: 4 | AK31: 204458.4 | AM31: 663615.0623 | AO31: =ROUND(AK31+AM31-Y31,2) -> 762164.26
B32: 5 | D32: =IF(ISBLANK('10. Load Forecast'!D33),"",'10. Load Forecast'!D33) -> Large Use | F32: kW | H32: =IF(ISBLANK($H$20),0,IF($H$20=$AC$4,'10. Load Forecast'!F33,IF($H$20=$AC$5,'10. Load Forecast'!L33,IF($H$20=$AC$6,'10. Load Forecast'!R33,'10. Load Forecast'!X33)))) -> 1 | J32: =IF(ISBLANK($H$20),0,IF($H$20=$AC$4,'10. Load Forecast'!H33,IF($H$20=$AC$5,'10. Load Forecast'!N33,IF($H$20=$AC$6,'10. Load Forecast'!T33,'10. Load Forecast'!Z33)))) -> 35440677.99 | L32: =IF(ISBLANK($H$20),0,IF($H$20=$AC$4,'10. Load Forecast'!J33,IF($H$20=$AC$5,'10. Load Forecast'!P33,IF($H$20=$AC$6,'10. Load Forecast'!V33,'10. Load Forecast'!AB33)))) -> 79009.18233 | O32: =IF(ISBLANK('11. Cost_Allocation'!I66),"",'11. Cost_Allocation'!I66) -> 321727.86 | Q32: 129647.4028 | S32: 192080.4572 | U32: 0.40297226 | W32: 0.59702774 | Y32: 47405.5094 | AA32: 10803.95 | AC32: 2 | AE32: =IF(S32="","",ROUND(IF(F32="kWh",(S32+Y32)/J32,(S32+Y32)/L32),AI32)) -> 3.0311 | AG32: /kW | AI32: 4 | AK32: 129647.4 | AM32: 239484.7326 | AO32: =ROUND(AK32+AM32-Y32,2) -> 321726.62
B33: 6 | D33: =IF(ISBLANK('10. Load Forecast'!D34),"",'10. Load Forecast'!D34) -> Street Light | F33: kW | H33: =IF(ISBLANK($H$20),0,IF($H$20=$AC$4,'10. Load Forecast'!F34,IF($H$20=$AC$5,'10. Load Forecast'!L34,IF($H$20=$AC$6,'10. Load Forecast'!R34,'10. Load Forecast'!X34)))) -> 14754.65051 | J33: =IF(ISBLANK($H$20),0,IF($H$20=$AC$4,'10. Load Forecast'!H34,IF($H$20=$AC$5,'10. Load Forecast'!N34,IF($H$20=$AC$6,'10. Load Forecast'!T34,'10. Load Forecast'!Z34)))) -> 4602782.664 | L33: =IF(ISBLANK($H$20),0,IF($H$20=$AC$4,'10. Load Forecast'!J34,IF($H$20=$AC$5,'10. Load Forecast'!P34,IF($H$20=$AC$6,'10. Load Forecast'!V34,'10. Load Forecast'!AB34)))) -> 13049.66042 | O33: =IF(ISBLANK('11. Cost_Allocation'!I67),"",'11. Cost_Allocation'!I67) -> 684441.67 | Q33: 322241.8206 | S33: 362199.8494 | U33: 0.4708097632 | W33: 0.5291902368 | AA33: 1.82 | AC33: 2 | AE33: 27.7555 | AG33: /kW | AI33: 4 | AK33: 322241.5672 | AM33: 362199.8498 | AO33: 684441.42
B34: 7 | D34: =IF(ISBLANK('10. Load Forecast'!D35),"",'10. Load Forecast'!D35) -> Sentinel Lights | F34: kW | H34: =IF(ISBLANK($H$20),0,IF($H$20=$AC$4,'10. Load Forecast'!F35,IF($H$20=$AC$5,'10. Load Forecast'!L35,IF($H$20=$AC$6,'10. Load Forecast'!R35,'10. Load Forecast'!X35)))) -> 19 | J34: =IF(ISBLANK($H$20),0,IF($H$20=$AC$4,'10. Load Forecast'!H35,IF($H$20=$AC$5,'10. Load Forecast'!N35,IF($H$20=$AC$6,'10. Load Forecast'!T35,'10. Load Forecast'!Z35)))) -> 25474.4 | L34: =IF(ISBLANK($H$20),0,IF($H$20=$AC$4,'10. Load Forecast'!J35,IF($H$20=$AC$5,'10. Load Forecast'!P35,IF($H$20=$AC$6,'10. Load Forecast'!V35,'10. Load Forecast'!AB35)))) -> 77.82188858 | O34: =IF(ISBLANK('11. Cost_Allocation'!I68),"",'11. Cost_Allocation'!I68) -> 2569.29 | Q34: 1554.95351 | S34: 1014.33649 | U34: 0.6052074737 | W34: 0.3947925263 | AA34: 6.82 | AC34: 2 | AE34: 13.0341 | AG34: /kW | AI34: 4 | AK34: 1554.96 | AM34: 1014.3383 | AO34: 2569.3
B35: 8 | D35: =IF(ISBLANK('10. Load Forecast'!D36),"",'10. Load Forecast'!D36) -> USL | F35: kWh | H35: =IF(ISBLANK($H$20),0,IF($H$20=$AC$4,'10. Load Forecast'!F36,IF($H$20=$AC$5,'10. Load Forecast'!L36,IF($H$20=$AC$6,'10. Load Forecast'!R36,'10. Load Forecast'!X36)))) -> 296.0984826 | J35: =IF(ISBLANK($H$20),0,IF($H$20=$AC$4,'10. Load Forecast'!H36,IF($H$20=$AC$5,'10. Load Forecast'!N36,IF($H$20=$AC$6,'10. Load Forecast'!T36,'10. Load Forecast'!Z36)))) -> 2874356.529 | L35: =IF(ISBLANK($H$20),0,IF($H$20=$AC$4,'10. Load Forecast'!J36,IF($H$20=$AC$5,'10. Load Forecast'!P36,IF($H$20=$AC$6,'10. Load Forecast'!V36,'10. Load Forecast'!AB36)))) -> 0 | O35: =IF(ISBLANK('11. Cost_Allocation'!I69),"",'11. Cost_Allocation'!I69) -> 73891 | Q35: 17089.34644 | S35: 56801.65356 | U35: 0.23127778 | W35: 0.76872222 | AA35: 4.81 | AC35: 2 | AE35: 0.0198 | AG35: /kWh | AI35: 4 | AK35: 17090.80442 | AM35: 56912.2593 | AO35: 74003.06
B36: 9 | D36: =IF(ISBLANK('10. Load Forecast'!D37),"",'10. Load Forecast'!D37) ->  | H36: =IF(ISBLANK($H$20),0,IF($H$20=$AC$4,'10. Load Forecast'!F37,IF($H$20=$AC$5,'10. Load Forecast'!L37,IF($H$20=$AC$6,'10. Load Forecast'!R37,'10. Load Forecast'!X37)))) -> 0 | J36: =IF(ISBLANK($H$20),0,IF($H$20=$AC$4,'10. Load Forecast'!H37,IF($H$20=$AC$5,'10. Load Forecast'!N37,IF($H$20=$AC$6,'10. Load Forecast'!T37,'10. Load Forecast'!Z37)))) -> 0 | L36: =IF(ISBLANK($H$20),0,IF($H$20=$AC$4,'10. Load Forecast'!J37,IF($H$20=$AC$5,'10. Load Forecast'!P37,IF($H$20=$AC$6,'10. Load Forecast'!V37,'10. Load Forecast'!AB37)))) -> 0 | O36: =IF(ISBLANK('11. Cost_Allocation'!I70),"",'11. Cost_Allocation'!I70) ->  | AC36: 2 | AI36: 4 | AK36: 0 | AM36: 0 | AO36: 0
B37: 10 | D37: =IF(ISBLANK('10. Load Forecast'!D38),"",'10. Load Forecast'!D38) ->  | H37: =IF(ISBLANK($H$20),0,IF($H$20=$AC$4,'10. Load Forecast'!F38,IF($H$20=$AC$5,'10. Load Forecast'!L38,IF($H$20=$AC$6,'10. Load Forecast'!R38,'10. Load Forecast'!X38)))) -> 0 | J37: =IF(ISBLANK($H$20),0,IF($H$20=$AC$4,'10. Load Forecast'!H38,IF($H$20=$AC$5,'10. Load Forecast'!N38,IF($H$20=$AC$6,'10. Load Forecast'!T38,'10. Load Forecast'!Z38)))) -> 0 | L37: =IF(ISBLANK($H$20),0,IF($H$20=$AC$4,'10. Load Forecast'!J38,IF($H$20=$AC$5,'10. Load Forecast'!P38,IF($H$20=$AC$6,'10. Load Forecast'!V38,'10. Load Forecast'!AB38)))) -> 0 | O37: =IF(ISBLANK('11. Cost_Allocation'!I71),"",'11. Cost_Allocation'!I71) ->  | AC37: 2 | AI37: 4 | AK37: 0 | AM37: 0 | AO37: 0
B38: 11 | D38: =IF(ISBLANK('10. Load Forecast'!D39),"",'10. Load Forecast'!D39) ->  | H38: =IF(ISBLANK($H$20),0,IF($H$20=$AC$4,'10. Load Forecast'!F39,IF($H$20=$AC$5,'10. Load Forecast'!L39,IF($H$20=$AC$6,'10. Load Forecast'!R39,'10. Load Forecast'!X39)))) -> 0 | J38: =IF(ISBLANK($H$20),0,IF($H$20=$AC$4,'10. Load Forecast'!H39,IF($H$20=$AC$5,'10. Load Forecast'!N39,IF($H$20=$AC$6,'10. Load Forecast'!T39,'10. Load Forecast'!Z39)))) -> 0 | L38: =IF(ISBLANK($H$20),0,IF($H$20=$AC$4,'10. Load Forecast'!J39,IF($H$20=$AC$5,'10. Load Forecast'!P39,IF($H$20=$AC$6,'10. Load Forecast'!V39,'10. Load Forecast'!AB39)))) -> 0 | O38: =IF(ISBLANK('11. Cost_Allocation'!I72),"",'11. Cost_Allocation'!I72) ->  | AC38: 2 | AI38: 4 | AK38: 0 | AM38: 0 | AO38: 0
B39: 12 | D39: =IF(ISBLANK('10. Load Forecast'!D40),"",'10. Load Forecast'!D40) ->  | H39: =IF(ISBLANK($H$20),0,IF($H$20=$AC$4,'10. Load Forecast'!F40,IF($H$20=$AC$5,'10. Load Forecast'!L40,IF($H$20=$AC$6,'10. Load Forecast'!R40,'10. Load Forecast'!X40)))) -> 0 | J39: =IF(ISBLANK($H$20),0,IF($H$20=$AC$4,'10. Load Forecast'!H40,IF($H$20=$AC$5,'10. Load Forecast'!N40,IF($H$20=$AC$6,'10. Load Forecast'!T40,'10. Load Forecast'!Z40)))) -> 0 | L39: =IF(ISBLANK($H$20),0,IF($H$20=$AC$4,'10. Load Forecast'!J40,IF($H$20=$AC$5,'10. Load Forecast'!P40,IF($H$20=$AC$6,'10. Load Forecast'!V40,'10. Load Forecast'!AB40)))) -> 0 | O39: =IF(ISBLANK('11. Cost_Allocation'!I73),"",'11. Cost_Allocation'!I73) ->  | AC39: 2 | AI39: 4 | AK39: 0 | AM39: 0 | AO39: 0
B40: 13 | D40: =IF(ISBLANK('10. Load Forecast'!D41),"",'10. Load Forecast'!D41) ->  | H40: =IF(ISBLANK($H$20),0,IF($H$20=$AC$4,'10. Load Forecast'!F41,IF($H$20=$AC$5,'10. Load Forecast'!L41,IF($H$20=$AC$6,'10. Load Forecast'!R41,'10. Load Forecast'!X41)))) -> 0 | J40: =IF(ISBLANK($H$20),0,IF($H$20=$AC$4,'10. Load Forecast'!H41,IF($H$20=$AC$5,'10. Load Forecast'!N41,IF($H$20=$AC$6,'10. Load Forecast'!T41,'10. Load Forecast'!Z41)))) -> 0 | L40: =IF(ISBLANK($H$20),0,IF($H$20=$AC$4,'10. Load Forecast'!J41,IF($H$20=$AC$5,'10. Load Forecast'!P41,IF($H$20=$AC$6,'10. Load Forecast'!V41,'10. Load Forecast'!AB41)))) -> 0 | O40: =IF(ISBLANK('11. Cost_Allocation'!I74),"",'11. Cost_Allocation'!I74) ->  | AC40: 2 | AI40: 4 | AK40: 0 | AM40: 0 | AO40: 0
B41: 14 | D41: =IF(ISBLANK('10. Load Forecast'!D42),"",'10. Load Forecast'!D42) ->  | H41: =IF(ISBLANK($H$20),0,IF($H$20=$AC$4,'10. Load Forecast'!F42,IF($H$20=$AC$5,'10. Load Forecast'!L42,IF($H$20=$AC$6,'10. Load Forecast'!R42,'10. Load Forecast'!X42)))) -> 0 | J41: =IF(ISBLANK($H$20),0,IF($H$20=$AC$4,'10. Load Forecast'!H42,IF($H$20=$AC$5,'10. Load Forecast'!N42,IF($H$20=$AC$6,'10. Load Forecast'!T42,'10. Load Forecast'!Z42)))) -> 0 | L41: =IF(ISBLANK($H$20),0,IF($H$20=$AC$4,'10. Load Forecast'!J42,IF($H$20=$AC$5,'10. Load Forecast'!P42,IF($H$20=$AC$6,'10. Load Forecast'!V42,'10. Load Forecast'!AB42)))) -> 0 | O41: =IF(ISBLANK('11. Cost_Allocation'!I75),"",'11. Cost_Allocation'!I75) ->  | AC41: 2 | AI41: 4 | AK41: 0 | AM41: 0 | AO41: 0
B42: 15 | D42: =IF(ISBLANK('10. Load Forecast'!D43),"",'10. Load Forecast'!D43) ->  | H42: =IF(ISBLANK($H$20),0,IF($H$20=$AC$4,'10. Load Forecast'!F43,IF($H$20=$AC$5,'10. Load Forecast'!L43,IF($H$20=$AC$6,'10. Load Forecast'!R43,'10. Load Forecast'!X43)))) -> 0 | J42: =IF(ISBLANK($H$20),0,IF($H$20=$AC$4,'10. Load Forecast'!H43,IF($H$20=$AC$5,'10. Load Forecast'!N43,IF($H$20=$AC$6,'10. Load Forecast'!T43,'10. Load Forecast'!Z43)))) -> 0 | L42: =IF(ISBLANK($H$20),0,IF($H$20=$AC$4,'10. Load Forecast'!J43,IF($H$20=$AC$5,'10. Load Forecast'!P43,IF($H$20=$AC$6,'10. Load Forecast'!V43,'10. Load Forecast'!AB43)))) -> 0 | O42: =IF(ISBLANK('11. Cost_Allocation'!I76),"",'11. Cost_Allocation'!I76) ->  | AC42: 2 | AI42: 4 | AK42: 0 | AM42: 0 | AO42: 0
B43: 16 | D43: =IF(ISBLANK('10. Load Forecast'!D44),"",'10. Load Forecast'!D44) ->  | H43: =IF(ISBLANK($H$20),0,IF($H$20=$AC$4,'10. Load Forecast'!F44,IF($H$20=$AC$5,'10. Load Forecast'!L44,IF($H$20=$AC$6,'10. Load Forecast'!R44,'10. Load Forecast'!X44)))) -> 0 | J43: =IF(ISBLANK($H$20),0,IF($H$20=$AC$4,'10. Load Forecast'!H44,IF($H$20=$AC$5,'10. Load Forecast'!N44,IF($H$20=$AC$6,'10. Load Forecast'!T44,'10. Load Forecast'!Z44)))) -> 0 | L43: =IF(ISBLANK($H$20),0,IF($H$20=$AC$4,'10. Load Forecast'!J44,IF($H$20=$AC$5,'10. Load Forecast'!P44,IF($H$20=$AC$6,'10. Load Forecast'!V44,'10. Load Forecast'!AB44)))) -> 0 | O43: =IF(ISBLANK('11. Cost_Allocation'!I77),"",'11. Cost_Allocation'!I77) ->  | AC43: 2 | AI43: 4 | AK43: 0 | AM43: 0 | AO43: 0
B44: 17 | D44: =IF(ISBLANK('10. Load Forecast'!D45),"",'10. Load Forecast'!D45) ->  | H44: =IF(ISBLANK($H$20),0,IF($H$20=$AC$4,'10. Load Forecast'!F45,IF($H$20=$AC$5,'10. Load Forecast'!L45,IF($H$20=$AC$6,'10. Load Forecast'!R45,'10. Load Forecast'!X45)))) -> 0 | J44: =IF(ISBLANK($H$20),0,IF($H$20=$AC$4,'10. Load Forecast'!H45,IF($H$20=$AC$5,'10. Load Forecast'!N45,IF($H$20=$AC$6,'10. Load Forecast'!T45,'10. Load Forecast'!Z45)))) -> 0 | L44: =IF(ISBLANK($H$20),0,IF($H$20=$AC$4,'10. Load Forecast'!J45,IF($H$20=$AC$5,'10. Load Forecast'!P45,IF($H$20=$AC$6,'10. Load Forecast'!V45,'10. Load Forecast'!AB45)))) -> 0 | O44: =IF(ISBLANK('11. Cost_Allocation'!I78),"",'11. Cost_Allocation'!I78) ->  | AC44: 2 | AI44: 4 | AK44: 0 | AM44: 0 | AO44: 0
B45: 18 | D45: =IF(ISBLANK('10. Load Forecast'!D46),"",'10. Load Forecast'!D46) ->  | H45: =IF(ISBLANK($H$20),0,IF($H$20=$AC$4,'10. Load Forecast'!F46,IF($H$20=$AC$5,'10. Load Forecast'!L46,IF($H$20=$AC$6,'10. Load Forecast'!R46,'10. Load Forecast'!X46)))) -> 0 | J45: =IF(ISBLANK($H$20),0,IF($H$20=$AC$4,'10. Load Forecast'!H46,IF($H$20=$AC$5,'10. Load Forecast'!N46,IF($H$20=$AC$6,'10. Load Forecast'!T46,'10. Load Forecast'!Z46)))) -> 0 | L45: =IF(ISBLANK($H$20),0,IF($H$20=$AC$4,'10. Load Forecast'!J46,IF($H$20=$AC$5,'10. Load Forecast'!P46,IF($H$20=$AC$6,'10. Load Forecast'!V46,'10. Load Forecast'!AB46)))) -> 0 | O45: =IF(ISBLANK('11. Cost_Allocation'!I79),"",'11. Cost_Allocation'!I79) ->  | AC45: 2 | AI45: 4 | AK45: 0 | AM45: 0 | AO45: 0 | AQ45: Distribution Revenues including TOA Credit Recovery in Rates
B46: 19 | D46: =IF(ISBLANK('10. Load Forecast'!D47),"",'10. Load Forecast'!D47) ->  | H46: =IF(ISBLANK($H$20),0,IF($H$20=$AC$4,'10. Load Forecast'!F47,IF($H$20=$AC$5,'10. Load Forecast'!L47,IF($H$20=$AC$6,'10. Load Forecast'!R47,'10. Load Forecast'!X47)))) -> 0 | J46: =IF(ISBLANK($H$20),0,IF($H$20=$AC$4,'10. Load Forecast'!H47,IF($H$20=$AC$5,'10. Load Forecast'!N47,IF($H$20=$AC$6,'10. Load Forecast'!T47,'10. Load Forecast'!Z47)))) -> 0 | L46: =IF(ISBLANK($H$20),0,IF($H$20=$AC$4,'10. Load Forecast'!J47,IF($H$20=$AC$5,'10. Load Forecast'!P47,IF($H$20=$AC$6,'10. Load Forecast'!V47,'10. Load Forecast'!AB47)))) -> 0 | O46: =IF(ISBLANK('11. Cost_Allocation'!I80),"",'11. Cost_Allocation'!I80) ->  | AC46: 2 | AI46: 4 | AK46: 0 | AM46: 0 | AO46: 0
B47: 20 | D47: =IF(ISBLANK('10. Load Forecast'!D48),"",'10. Load Forecast'!D48) ->  | H47: =IF(ISBLANK($H$20),0,IF($H$20=$AC$4,'10. Load Forecast'!F48,IF($H$20=$AC$5,'10. Load Forecast'!L48,IF($H$20=$AC$6,'10. Load Forecast'!R48,'10. Load Forecast'!X48)))) -> 0 | J47: =IF(ISBLANK($H$20),0,IF($H$20=$AC$4,'10. Load Forecast'!H48,IF($H$20=$AC$5,'10. Load Forecast'!N48,IF($H$20=$AC$6,'10. Load Forecast'!T48,'10. Load Forecast'!Z48)))) -> 0 | L47: =IF(ISBLANK($H$20),0,IF($H$20=$AC$4,'10. Load Forecast'!J48,IF($H$20=$AC$5,'10. Load Forecast'!P48,IF($H$20=$AC$6,'10. Load Forecast'!V48,'10. Load Forecast'!AB48)))) -> 0 | O47: =IF(ISBLANK('11. Cost_Allocation'!I81),"",'11. Cost_Allocation'!I81) ->  | AC47: 2 | AI47: 4 | AK47: 0 | AM47: 0 | AO47: 0
S49: Total Transformer Ownership Allowance | Y49: =SUM(Y28:Y47) -> 206194.2315 | AJ49: Total Distribution Revenues | AO49: =SUM(AO28:AO47) -> 35039442.21 | AQ49: =SUM(AK28:AK47)+SUM(AM28:AM47) -> 35245636.45
AQ50: =AO49+Y49 -> 35245636.44
AE51: =IF(AO54="","",IF((ABS(AO54)<=0.5%),"Rates recover revenue requirement","Revenues recovered from rates deviate materially from revenue requirement - check data inputs and calculations")) -> Rates recover revenue requirement | AJ51: Base Revenue Requirement | AO51: =IF(SIP="",0,IF(SIP=IA,BRRAPP,IF(SIP=IR,BRRIR,IF(SIP=SA,BRRSA,IF(SIP=PBD,BRRPBD))))) -> 35038466.79
B52: Notes:
AJ53: Difference | AO53: =AO49-AO51 -> 975.4246954
B54: 1 | D54: Transformer Ownership Allowance is entered as a positive amount, and only for those classes to which it applies. | AJ54: % Difference | AO54: =IF(AO51=0,"",AO53/AO51) -> 2.783868088e-05
B56: 2 | D56: The Fixed/Variable split, for each customer class, drives the "rate generator" portion of this sheet of the RRWF. Only the "fixed" fraction is entered, as the sum of the "fixed" and "variable" portions must sum to 100%. For a distributor that may set the Monthly Service Charge, the "fixed" ratio is calcutated as: [MSC x (average number of customers or connections) x 12 months] / (Class Allocated Revenue Requirement).
B59: 3 | D59: The Volumetric rate is calculated as [(allocated volumetric revenue requirement for the class + transformer allowance credit for the class)/(annual estimate of the charge determinant for the test year (either kW or kVA for demand-billed customer classes, or kWh for non-demand-billed classes)]

Sheet 14. Tracking_Sheet
B14: Tracking Form
B15: The first row shown, labelled "Original Application", summarizes key statistics based on the data inputs into the RRWF. After the original application filing, the applicant provides key changes in capital and operating expenses, load forecasts, cost of capital, etc., as revised through the processing of the application. This could be due to revisions or responses to interrogatories. The last row shown is the most current estimate of the cost of service data reflecting the original application and any updates provided by the applicant distributor (for updated evidence, responses to interrogatories, undertakings, etc.) Please ensure a Reference (Column B) and/or Item Description (Column C) is entered. (1) Short reference to evidence material (interrogatory response, undertaking, exhibit number, Board Decision, Code, Guideline, Report of the Board, etc.) (2) Short description of change, issue, etc. 60 Tracking Rows have been provided below. If you require more, please contact Industry Relations @ IndustryRelations@ontarioenergyboard.ca.
B16: Summary of Proposed Changes
D18: Cost of Capital | F18: Rate Base and Capital Expenditures | I18: Operating Expenses | L18: Revenue Requirement
B19: Reference (1) | C19: Item / Description (2) | D19: Regulated Return on Capital | E19: Regulated Rate of Return | F19: Rate Base | G19: Working Capital | H19: Working Capital Allowance ($) | I19: Amortization / Depreciation | J19: Taxes/PILs | K19: OM&A | L19: Service Revenue Requirement | M19: Other Revenues | N19: Base Revenue Requirement | O19: Grossed up Revenue Deficiency / Sufficiency
C21: Original Application | D21: ='7. Cost_of_Capital'!P26 -> 10423099.09 | E21: ='7. Cost_of_Capital'!L26 -> 0.05666 | F21: ='4. Rate_Base'!G19 -> 183958685 | G21: ='4. Rate_Base'!G26 -> 157302817.9 | H21: ='4. Rate_Base'!G30 -> 11797711.34 | I21: ='9. Rev_Reqt'!F16 -> 9467348.33 | J21: ='9. Rev_Reqt'!F19 -> 0 | K21: ='9. Rev_Reqt'!F15 -> 22271990.05 | L21: ='9. Rev_Reqt'!F25 -> 42326999.11 | M21: ='9. Rev_Reqt'!F32 -> 3478106.86 | N21: ='9. Rev_Reqt'!F28 -> 38848892.25 | O21: ='8. Rev_Def_Suff'!F52 -> 6670155.983
A23: 1 | B23: 3-VECC-104; 3-VECC-107; 3-VECC-108; 8-Staff/CCMBC-206; 8-VECC-207; 8-Staff-211 | C23: Update Cost of power / Rate Base | D23: =+F23*E23 -> 10420680.13 | E23: 0.05666 | F23: 183915992.4 | G23: 156733583.4 | H23: 11755018.75 | I23: 9467348.33 | J23: 0 | K23: 22271990.05 | L23: 42324580.15 | M23: 3478106.86 | N23: 38848892.25 | O23: 6667737.021 | Q23: =IF(AND(ISBLANK(B23), ISBLANK(C23)), "X", "") -> 
C24: Change | D24: =IF(D23="","",D23-D21) -> -2418.961907 | E24: =IF(E23="","",E23-E21) -> 0 | F24: -42692.58572 | G24: -569234.4762 | H24: -42692.58572 | I24: 0 | J24: 0 | K24: 0 | L24: -2418.961907 | M24: 0 | N24: 0 | O24: -2418.961907
A26: 2 | B26: 7-VECC/CCMBC-198; 7-VECC-203 | C26: Update Distribution Revenue / Miscellaneous Revenue | D26: =+F26*E26 -> 10420680.13 | E26: 0.05666 | F26: 183915992.4 | G26: 156733583.4 | H26: 11755018.75 | I26: 9467348.33 | J26: 0 | K26: 22271990.05 | L26: 42324580.15 | M26: 3478466.355 | N26: 38846113.8 | O26: 6802001.711 | Q26: =IF(AND(ISBLANK(B26), ISBLANK(C26)), "X", "") -> 
C27: Change | D27: =IF(D26="","",D26-D23) -> 0 | E27: 0 | F27: 0 | G27: 0 | H27: 0 | I27: 0 | J27: 0 | K27: 0 | L27: 0 | M27: 359.495 | N27: -2778.456907 | O27: 134264.6892
A29: 3 | B29: 5-Staff-186 | C29: To include both notional and actual long-term debt structure | D29: =+F29*E29 -> 10420680.13 | E29: 0.05666 | F29: 183915992.4 | G29: 156733583.4 | H29: 11755018.75 | I29: 9467348.33 | J29: 0 | K29: 22271990.05 | L29: 42324580.15 | M29: 3478466.355 | N29: 38846113.8 | O29: 6802001.711 | Q29: =IF(AND(ISBLANK(B29), ISBLANK(C29)), "X", "") -> 
C30: Change | D30: =IF(D29="","",D29-D26) -> 0 | E30: =IF(E29="","",E29-E26) -> 0 | F30: 0 | G30: 0 | H30: 0 | I30: 0 | J30: 0 | K30: 0 | L30: 0 | M30: 0 | N30: 0 | O30: 0
A32: 4 | B32: CQ-VECC-2 & 5 | C32: Load Forecast Revisions (Customer Count & Econ variables) | D32: 10423191.42 | E32: 0.05666 | F32: 183960314.5 | G32: 157324544.4 | H32: 11797711.34 | I32: 9467348.33 | J32: 0 | K32: 22271990.05 | L32: 42327091.44 | M32: 3478466.355 | N32: 38848625.09 | O32: 6639448.735 | Q32: =IF(AND(ISBLANK(B32), ISBLANK(C32)), "X", "") -> 
C33: Change | D33: =IF(D32="","",D32-D29) -> 2511.288844 | E33: =IF(E32="","",E32-E29) -> 0 | F33: 44322.07632 | G33: 590961.0176 | H33: 42692.58572 | I33: 0 | J33: 0 | K33: 0 | L33: 2511.288844 | M33: 0 | N33: 2511.288844 | O33: -162552.9754
A35: 5 | B35: Partial Settlement | C35: Other Revenue Settlement Adjustment | D35: ='7. Cost_of_Capital'!$P$60 -> 10423191.42 | E35: ='7. Cost_of_Capital'!$L$60 -> 0.05666 | F35: ='4. Rate_Base'!$W$19 -> 183960314.5 | G35: ='4. Rate_Base'!$W$26 -> 157324544.4 | H35: ='4. Rate_Base'!$G$30 -> 11797711.34 | I35: ='9. Rev_Reqt'!$N$16 -> 9467348.33 | J35: ='9. Rev_Reqt'!$N$19 -> 0 | K35: ='9. Rev_Reqt'!$N$15 -> 22271990.05 | L35: ='9. Rev_Reqt'!$N$25 -> 42327091.44 | M35: ='9. Rev_Reqt'!$N$32 -> 3827274.355 | N35: ='9. Rev_Reqt'!$N$28 -> 38499817.09 | O35: ='8. Rev_Def_Suff'!$N$52 -> 6290640.735 | Q35: =IF(AND(ISBLANK(B35), ISBLANK(C35)), "X", "") -> 
C36: Change | D36: =IF(D35="","",D35-D32) -> 0 | E36: =IF(E35="","",E35-E32) -> 0 | F36: 0 | G36: 0 | H36: 0 | I36: 0 | J36: 0 | K36: 0 | L36: 0 | M36: 348808 | N36: -348808 | O36: -348808
A38: 6 | B38: Decision | C38: Per Board Decision May 28, 2026 | D38: ='7. Cost_of_Capital'!$P$77 -> 10290629.98 | E38: ='7. Cost_of_Capital'!$L$77 -> 0.056624 | F38: ='4. Rate_Base'!$AC$19 -> 181736189.3 | G38: ='4. Rate_Base'!$AC$26 -> 167489771.5 | H38: ='4. Rate_Base'!$AC$30 -> 12561732.86 | I38: ='9. Rev_Reqt'!$R$16 -> 8910549.52 | J38: ='9. Rev_Reqt'!$R$19 -> 0 | K38: ='9. Rev_Reqt'!$R$15 -> 19500000 | L38: ='9. Rev_Reqt'!$R$25 -> 38865741.14 | M38: ='9. Rev_Reqt'!$R$32 -> 3827274.355 | N38: ='9. Rev_Reqt'!$R$28 -> 35038466.79 | O38: ='8. Rev_Def_Suff'!$R$52 -> 2811278.229 | Q38: =IF(AND(ISBLANK(B38), ISBLANK(C38)), "X", "") -> 
C39: Change | D39: =IF(D38="","",D38-D35) -> -132561.4398 | E39: =IF(E38="","",E38-E35) -> -3.6e-05 | F39: -2224125.256 | G39: 10165227.05 | H39: 764021.5192 | I39: -556798.81 | J39: 0 | K39: -2771990.05 | L39: -3461350.3 | M39: 0 | N39: -3461350.3 | O39: -3479362.506
A41: 7 | Q41: =IF(AND(ISBLANK(B41), ISBLANK(C41)), "X", "") -> X
C42: Change | D42: =IF(D41="","",D41-D38) ->  | E42: =IF(E41="","",E41-E38) -> 
A44: 8 | Q44: =IF(AND(ISBLANK(B44), ISBLANK(C44)), "X", "") -> X
C45: Change | D45: =IF(D44="","",D44-D41) ->  | E45: =IF(E44="","",E44-E41) -> 
A47: 9 | Q47: =IF(AND(ISBLANK(B47), ISBLANK(C47)), "X", "") -> X
C48: Change | D48: =IF(D47="","",D47-D44) ->  | E48: =IF(E47="","",E47-E44) -> 
A50: 10 | Q50: =IF(AND(ISBLANK(B50), ISBLANK(C50)), "X", "") -> X
C51: Change | D51: =IF(D50="","",D50-D47) ->  | E51: =IF(E50="","",E50-E47) -> 
A53: 11 | Q53: =IF(AND(ISBLANK(B53), ISBLANK(C53)), "X", "") -> X
C54: Change | D54: =IF(D53="","",D53-D50) ->  | E54: =IF(E53="","",E53-E50) -> 
A56: 12 | Q56: =IF(AND(ISBLANK(B56), ISBLANK(C56)), "X", "") -> X
C57: Change | D57: =IF(D56="","",D56-D53) ->  | E57: =IF(E56="","",E56-E53) -> 
A59: 13 | Q59: =IF(AND(ISBLANK(B59), ISBLANK(C59)), "X", "") -> X
C60: Change | D60: =IF(D59="","",D59-D56) ->  | E60: =IF(E59="","",E59-E56) -> 
A62: 14 | Q62: =IF(AND(ISBLANK(B62), ISBLANK(C62)), "X", "") -> X
C63: Change | D63: =IF(D62="","",D62-D59) ->  | E63: =IF(E62="","",E62-E59) -> 
A65: 15 | Q65: =IF(AND(ISBLANK(B65), ISBLANK(C65)), "X", "") -> X
C66: Change | D66: =IF(D65="","",D65-D62) ->  | E66: =IF(E65="","",E65-E62) -> 
A68: 16 | Q68: =IF(AND(ISBLANK(B68), ISBLANK(C68)), "X", "") -> X
C69: Change | D69: =IF(D68="","",D68-D65) ->  | E69: =IF(E68="","",E68-E65) -> 
A71: 17 | Q71: =IF(AND(ISBLANK(B71), ISBLANK(C71)), "X", "") -> X
C72: Change | D72: =IF(D71="","",D71-D68) ->  | E72: =IF(E71="","",E71-E68) -> 
A74: 18 | Q74: =IF(AND(ISBLANK(B74), ISBLANK(C74)), "X", "") -> X
C75: Change | D75: =IF(D74="","",D74-D71) ->  | E75: =IF(E74="","",E74-E71) -> 
R76: Page Break 1
A77: 19 | Q77: =IF(AND(ISBLANK(B77), ISBLANK(C77)), "X", "") -> X
C78: Change | D78: =IF(D77="","",D77-D74) ->  | E78: =IF(E77="","",E77-E74) -> 
A80: 20 | Q80: =IF(AND(ISBLANK(B80), ISBLANK(C80)), "X", "") -> X
C81: Change | D81: =IF(D80="","",D80-D77) ->  | E81: =IF(E80="","",E80-E77) -> 
A83: 21 | Q83: =IF(AND(ISBLANK(B83), ISBLANK(C83)), "X", "") -> X
C84: Change | D84: =IF(D83="","",D83-D80) ->  | E84: =IF(E83="","",E83-E80) -> 
A86: 22 | Q86: =IF(AND(ISBLANK(B86), ISBLANK(C86)), "X", "") -> X
C87: Change | D87: =IF(D86="","",D86-D83) ->  | E87: =IF(E86="","",E86-E83) -> 
A89: 23 | Q89: =IF(AND(ISBLANK(B89), ISBLANK(C89)), "X", "") -> X
C90: Change | D90: =IF(D89="","",D89-D86) ->  | E90: =IF(E89="","",E89-E86) -> 
A92: 24 | Q92: =IF(AND(ISBLANK(B92), ISBLANK(C92)), "X", "") -> X
C93: Change | D93: =IF(D92="","",D92-D89) ->  | E93: =IF(E92="","",E92-E89) -> 
A95: 25 | Q95: =IF(AND(ISBLANK(B95), ISBLANK(C95)), "X", "") -> X
C96: Change | D96: =IF(D95="","",D95-D92) ->  | E96: =IF(E95="","",E95-E92) -> 
A98: 26 | Q98: =IF(AND(ISBLANK(B98), ISBLANK(C98)), "X", "") -> X
C99: Change | D99: =IF(D98="","",D98-D95) ->  | E99: =IF(E98="","",E98-E95) -> 
A101: 27 | Q101: =IF(AND(ISBLANK(B101), ISBLANK(C101)), "X", "") -> X
C102: Change | D102: =IF(D101="","",D101-D98) ->  | E102: =IF(E101="","",E101-E98) -> 
A104: 28 | Q104: =IF(AND(ISBLANK(B104), ISBLANK(C104)), "X", "") -> X
C105: Change | D105: =IF(D104="","",D104-D101) ->  | E105: =IF(E104="","",E104-E101) -> 
A107: 29 | Q107: =IF(AND(ISBLANK(B107), ISBLANK(C107)), "X", "") -> X
C108: Change | D108: =IF(D107="","",D107-D104) ->  | E108: =IF(E107="","",E107-E104) -> 
A110: 30 | Q110: =IF(AND(ISBLANK(B110), ISBLANK(C110)), "X", "") -> X
C111: Change | D111: =IF(D110="","",D110-D107) ->  | E111: =IF(E110="","",E110-E107) -> 
A113: 31 | Q113: =IF(AND(ISBLANK(B113), ISBLANK(C113)), "X", "") -> X
C114: Change | D114: =IF(D113="","",D113-D110) ->  | E114: =IF(E113="","",E113-E110) -> 
A116: 32 | Q116: =IF(AND(ISBLANK(B116), ISBLANK(C116)), "X", "") -> X
C117: Change | D117: =IF(D116="","",D116-D113) ->  | E117: =IF(E116="","",E116-E113) -> 
A119: 33 | Q119: =IF(AND(ISBLANK(B119), ISBLANK(C119)), "X", "") -> X
C120: Change | D120: =IF(D119="","",D119-D116) ->  | E120: =IF(E119="","",E119-E116) -> 
A122: 34 | Q122: =IF(AND(ISBLANK(B122), ISBLANK(C122)), "X", "") -> X
C123: Change | D123: =IF(D122="","",D122-D119) ->  | E123: =IF(E122="","",E122-E119) -> 
A125: 35 | Q125: =IF(AND(ISBLANK(B125), ISBLANK(C125)), "X", "") -> X
C126: Change | D126: =IF(D125="","",D125-D122) ->  | E126: =IF(E125="","",E125-E122) -> 
A128: 36 | Q128: =IF(AND(ISBLANK(B128), ISBLANK(C128)), "X", "") -> X
C129: Change | D129: =IF(D128="","",D128-D125) ->  | E129: =IF(E128="","",E128-E125) -> 
R130: Page Break 2
A131: 37 | Q131: =IF(AND(ISBLANK(B131), ISBLANK(C131)), "X", "") -> X
C132: Change | D132: =IF(D131="","",D131-D128) ->  | E132: =IF(E131="","",E131-E128) -> 
A134: 38 | Q134: =IF(AND(ISBLANK(B134), ISBLANK(C134)), "X", "") -> X
C135: Change | D135: =IF(D134="","",D134-D131) ->  | E135: =IF(E134="","",E134-E131) -> 
A137: 39 | Q137: =IF(AND(ISBLANK(B137), ISBLANK(C137)), "X", "") -> X
C138: Change | D138: =IF(D137="","",D137-D134) ->  | E138: =IF(E137="","",E137-E134) -> 
A140: 40 | Q140: =IF(AND(ISBLANK(B140), ISBLANK(C140)), "X", "") -> X
C141: Change | D141: =IF(D140="","",D140-D137) ->  | E141: =IF(E140="","",E140-E137) -> 
A143: 41 | Q143: =IF(AND(ISBLANK(B143), ISBLANK(C143)), "X", "") -> X
C144: Change | D144: =IF(D143="","",D143-D140) ->  | E144: =IF(E143="","",E143-E140) -> 
A146: 42 | Q146: =IF(AND(ISBLANK(B146), ISBLANK(C146)), "X", "") -> X
C147: Change | D147: =IF(D146="","",D146-D143) ->  | E147: =IF(E146="","",E146-E143) -> 
A149: 43 | Q149: =IF(AND(ISBLANK(B149), ISBLANK(C149)), "X", "") -> X
C150: Change | D150: =IF(D149="","",D149-D146) ->  | E150: =IF(E149="","",E149-E146) -> 
A152: 44 | Q152: =IF(AND(ISBLANK(B152), ISBLANK(C152)), "X", "") -> X
C153: Change | D153: =IF(D152="","",D152-D149) ->  | E153: =IF(E152="","",E152-E149) -> 
A155: 45 | Q155: =IF(AND(ISBLANK(B155), ISBLANK(C155)), "X", "") -> X
C156: Change | D156: =IF(D155="","",D155-D152) ->  | E156: =IF(E155="","",E155-E152) -> 
A158: 46 | Q158: =IF(AND(ISBLANK(B158), ISBLANK(C158)), "X", "") -> X
C159: Change | D159: =IF(D158="","",D158-D155) ->  | E159: =IF(E158="","",E158-E155) -> 
A161: 47 | Q161: =IF(AND(ISBLANK(B161), ISBLANK(C161)), "X", "") -> X
C162: Change | D162: =IF(D161="","",D161-D158) ->  | E162: =IF(E161="","",E161-E158) -> 
A164: 48 | Q164: =IF(AND(ISBLANK(B164), ISBLANK(C164)), "X", "") -> X
C165: Change | D165: =IF(D164="","",D164-D161) ->  | E165: =IF(E164="","",E164-E161) -> 
A167: 49 | Q167: =IF(AND(ISBLANK(B167), ISBLANK(C167)), "X", "") -> X
C168: Change | D168: =IF(D167="","",D167-D164) ->  | E168: =IF(E167="","",E167-E164) -> 
A170: 50 | Q170: =IF(AND(ISBLANK(B170), ISBLANK(C170)), "X", "") -> X
C171: Change | D171: =IF(D170="","",D170-D167) ->  | E171: =IF(E170="","",E170-E167) -> 
A173: 51 | Q173: =IF(AND(ISBLANK(B173), ISBLANK(C173)), "X", "") -> X
C174: Change | D174: =IF(D173="","",D173-D170) ->  | E174: =IF(E173="","",E173-E170) -> 
A176: 52 | Q176: =IF(AND(ISBLANK(B176), ISBLANK(C176)), "X", "") -> X
C177: Change | D177: =IF(D176="","",D176-D173) ->  | E177: =IF(E176="","",E176-E173) -> 
A179: 53 | Q179: =IF(AND(ISBLANK(B179), ISBLANK(C179)), "X", "") -> X
C180: Change | D180: =IF(D179="","",D179-D176) ->  | E180: =IF(E179="","",E179-E176) -> 
R181: Page Break 3
A182: 54 | Q182: =IF(AND(ISBLANK(B182), ISBLANK(C182)), "X", "") -> X
C183: Change | D183: =IF(D182="","",D182-D179) ->  | E183: =IF(E182="","",E182-E179) -> 
A185: 55 | Q185: =IF(AND(ISBLANK(B185), ISBLANK(C185)), "X", "") -> X
C186: Change | D186: =IF(D185="","",D185-D182) ->  | E186: =IF(E185="","",E185-E182) -> 
A188: 56 | Q188: =IF(AND(ISBLANK(B188), ISBLANK(C188)), "X", "") -> X
C189: Change | D189: =IF(D188="","",D188-D185) ->  | E189: =IF(E188="","",E188-E185) -> 
A191: 57 | Q191: =IF(AND(ISBLANK(B191), ISBLANK(C191)), "X", "") -> X
C192: Change | D192: =IF(D191="","",D191-D188) ->  | E192: =IF(E191="","",E191-E188) -> 
A194: 58 | Q194: =IF(AND(ISBLANK(B194), ISBLANK(C194)), "X", "") -> X
C195: Change | D195: =IF(D194="","",D194-D191) ->  | E195: =IF(E194="","",E194-E191) -> 
A197: 59 | Q197: =IF(AND(ISBLANK(B197), ISBLANK(C197)), "X", "") -> X
C198: Change | D198: =IF(D197="","",D197-D194) ->  | E198: =IF(E197="","",E197-E194) -> 
A200: 60 | Q200: =IF(AND(ISBLANK(B200), ISBLANK(C200)), "X", "") -> X
C201: Change | D201: =IF(D200="","",D200-D197) ->  | E201: =IF(E200="","",E200-E197) -> 
R203: Page Break 4

Sheet Sheet4 (hidden)
